Workbook

Sheet w1118_Day50 - w_1118_ - Day 50
A1: w[1118] - Day 50
A2: Median Time (s) | B2: Median Diameter (um) - Individual Animal | T2: Median Diameter (um) - All Heartbeats
A3: 0 | B3: 78.9 | C3: 76.1 | D3: 65.55 | E3: 95.1 | F3: 86.8 | G3: 79.1 | H3: 67.2 | I3: 68.9 | J3: 86.5 | K3: 76.1 | L3: 80.8 | M3: 71.15 | N3: 82.4 | O3: 65 | P3: 72.9 | Q3: 65.5 | R3: 65.1 | T3: 74.5
A4: =A3+1/120 -> 0.008333333333 | B4: 74.8 | C4: 71.8 | D4: 61.8 | E4: 89.6 | F4: 81.9 | G4: 76.3 | H4: 64.5 | I4: 65.1 | J4: 83.3 | K4: 71.3 | L4: 77.1 | M4: 67.9 | N4: 78.6 | O4: 61.9 | P4: 69.3 | Q4: 62 | R4: 60.4 | T4: 70.6
A5: =A4+1/120 -> 0.01666666667 | B5: 69.4 | C5: 65.6 | D5: 56.75 | E5: 83 | F5: 76.2 | G5: 71.3 | H5: 60.8 | I5: 60 | J5: 78.1 | K5: 65.3 | L5: 71.4 | M5: 62.55 | N5: 72.6 | O5: 57.5 | P5: 63.7 | Q5: 57.2 | R5: 54.5 | T5: 65.2
A6: =A5+1/120 -> 0.025 | B6: 63.2 | C6: 59 | D6: 51.65 | E6: 76 | F6: 69.6 | G6: 65.6 | H6: 56.7 | I6: 54.8 | J6: 72.3 | K6: 59 | L6: 65.7 | M6: 56.6 | N6: 65.6 | O6: 52.5 | P6: 58.1 | Q6: 52.45 | R6: 48.8 | T6: 59.6
A7: =A6+1/120 -> 0.03333333333 | B7: 57.4 | C7: 52.7 | D7: 46.7 | E7: 69.9 | F7: 63.05 | G7: 59.9 | H7: 52.4 | I7: 49.8 | J7: 66.5 | K7: 53.7 | L7: 59.6 | M7: 50.9 | N7: 58.9 | O7: 47.7 | P7: 52.8 | Q7: 48.1 | R7: 44.1 | T7: 54.2
A8: =A7+1/120 -> 0.04166666667 | B8: 52.2 | C8: 47.1 | D8: 42.8 | E8: 64 | F8: 57.5 | G8: 54.9 | H8: 48.1 | I8: 45.5 | J8: 61.6 | K8: 49.7 | L8: 53.8 | M8: 45.9 | N8: 53.4 | O8: 43.8 | P8: 48.8 | Q8: 44.3 | R8: 40.7 | T8: 49.6
A9: =A8+1/120 -> 0.05 | B9: 48 | C9: 42.7 | D9: 39.7 | E9: 59 | F9: 53.2 | G9: 50.6 | H9: 44.3 | I9: 42.2 | J9: 57.4 | K9: 47.1 | L9: 49 | M9: 42.1 | N9: 49.5 | O9: 40.6 | P9: 45.8 | Q9: 41.5 | R9: 38.3 | T9: 45.9
A10: =A9+1/120 -> 0.05833333333 | B10: 45.1 | C10: 39.5 | D10: 37.6 | E10: 55.2 | F10: 50.2 | G10: 47.6 | H10: 41.3 | I10: 39.7 | J10: 54.1 | K10: 45.3 | L10: 45.4 | M10: 39.4 | N10: 47.1 | O10: 38 | P10: 43.6 | Q10: 39.45 | R10: 36.7 | T10: 43.3
A11: =A10+1/120 -> 0.06666666667 | B11: 43 | C11: 37.7 | D11: 36.3 | E11: 52.5 | F11: 48.3 | G11: 45.6 | H11: 39.2 | I11: 38 | J11: 51.3 | K11: 44.1 | L11: 42.95 | M11: 38 | N11: 45.5 | O11: 36.1 | P11: 42.1 | Q11: 38.1 | R11: 35.8 | T11: 41.5
A12: =A11+1/120 -> 0.075 | B12: 41.7 | C12: 36.6 | D12: 35.9 | E12: 50.6 | F12: 46.9 | G12: 44.7 | H12: 37.7 | I12: 36.8 | J12: 49.1 | K12: 43.7 | L12: 41.4 | M12: 37.4 | N12: 44.7 | O12: 34.5 | P12: 41 | Q12: 37.3 | R12: 35.5 | T12: 40.4
A13: =A12+1/120 -> 0.08333333333 | B13: 41.2 | C13: 36.1 | D13: 36 | E13: 49.6 | F13: 46.2 | G13: 44.3 | H13: 36.7 | I13: 36 | J13: 47.3 | K13: 43.7 | L13: 41.05 | M13: 37.1 | N13: 44.3 | O13: 33.9 | P13: 40.6 | Q13: 37 | R13: 35.7 | T13: 39.9
A14: =A13+1/120 -> 0.09166666667 | B14: 41.3 | C14: 36.1 | D14: 36.6 | E14: 49.3 | F14: 46 | G14: 44.9 | H14: 36.3 | I14: 35.7 | J14: 45.7 | K14: 44.3 | L14: 41.6 | M14: 37.2 | N14: 44.5 | O14: 34.6 | P14: 40.9 | Q14: 37.2 | R14: 36.3 | T14: 40.1
A15: =A14+1/120 -> 0.1 | B15: 42.3 | C15: 37.2 | D15: 37.5 | E15: 49.9 | F15: 46.45 | G15: 46.2 | H15: 36.6 | I15: 36 | J15: 44.9 | K15: 45.4 | L15: 43.3 | M15: 37.8 | N15: 45.4 | O15: 36.5 | P15: 41.9 | Q15: 38.1 | R15: 37.4 | T15: 41
A16: =A15+1/120 -> 0.1083333333 | B16: 44.4 | C16: 39.1 | D16: 39.4 | E16: 51.6 | F16: 47.7 | G16: 48.6 | H16: 37.9 | I16: 37.4 | J16: 44.9 | K16: 47.3 | L16: 47.3 | M16: 39.3 | N16: 48.4 | O16: 38.8 | P16: 43.8 | Q16: 39.9 | R16: 39 | T16: 43
A17: =A16+1/120 -> 0.1166666667 | B17: 48 | C17: 42.4 | D17: 43 | E17: 55.3 | F17: 50.2 | G17: 52.8 | H17: 40.5 | I17: 39.5 | J17: 45.5 | K17: 50.9 | L17: 51.65 | M17: 41.6 | N17: 52.7 | O17: 42.7 | P17: 47.2 | Q17: 42.5 | R17: 41.1 | T17: 46.3
A18: =A17+1/120 -> 0.125 | B18: 52.9 | C18: 47 | D18: 46.9 | E18: 60.6 | F18: 54.9 | G18: 57.9 | H18: 44.7 | I18: 42.5 | J18: 47.5 | K18: 55.5 | L18: 57.3 | M18: 45.25 | N18: 58.7 | O18: 47.6 | P18: 52 | Q18: 46.1 | R18: 43.6 | T18: 50.6
A19: =A18+1/120 -> 0.1333333333 | B19: 58.9 | C19: 52.5 | D19: 50.85 | E19: 67 | F19: 61.7 | G19: 63.1 | H19: 50.1 | I19: 47 | J19: 51 | K19: 60.5 | L19: 64.2 | M19: 50.6 | N19: 65.05 | O19: 52.3 | P19: 57.5 | Q19: 49.6 | R19: 46.3 | T19: 55.7
A20: =A19+1/120 -> 0.1416666667 | B20: 65.2 | C20: 57.8 | D20: 54.6 | E20: 73.2 | F20: 68.3 | G20: 68.2 | H20: 55.3 | I20: 52 | J20: 55.6 | K20: 65.15 | L20: 70.75 | M20: 56.2 | N20: 70.4 | O20: 56.95 | P20: 62.7 | Q20: 53.3 | R20: 49.2 | T20: 61.3
A21: =A20+1/120 -> 0.15 | B21: 70.3 | C21: 62.4 | D21: 58 | E21: 78.9 | F21: 73.6 | G21: 72.7 | H21: 58.8 | I21: 56.6 | J21: 61.1 | K21: 69.4 | L21: 75.2 | M21: 60.55 | N21: 74.85 | O21: 60.9 | P21: 67 | Q21: 56.5 | R21: 52.1 | T21: 66
A22: =A21+1/120 -> 0.1583333333 | B22: 74.4 | C22: 65.6 | D22: 60.5 | E22: 84.8 | F22: 77.3 | G22: 75.9 | H22: 61.7 | I22: 59.4 | J22: 67 | K22: 72.6 | L22: 76.8 | M22: 63.5 | N22: 78.3 | O22: 63.5 | P22: 70.15 | Q22: 59.4 | R22: 54.4 | T22: 69.3
A23: =A22+1/120 -> 0.1666666667 | B23: 76.6 | C23: 68.5 | D23: 62.5 | E23: 89.7 | F23: 80 | G23: 77.1 | H23: 64 | I23: 61.4 | J23: 72.1 | K23: 75 | L23: 76.3 | M23: 65.2 | N23: 80.25 | O23: 64.6 | P23: 71.7 | Q23: 61.7 | R23: 56.1 | T23: 71.2
A24: =A23+1/120 -> 0.175 | B24: 78.1 | C24: 71 | D24: 63.2 | E24: 92.8 | F24: 81.95 | G24: 77.5 | H24: 64.05 | I24: 62.1 | J24: 75.9 | K24: 75.15 | L24: 76.6 | M24: 65.8 | N24: 80.7 | O24: 64.9 | P24: 72.35 | Q24: 62.5 | R24: 57 | T24: 72.4
A25: =A24+1/120 -> 0.1833333333 | B25: 78.6 | C25: 72.7 | D25: 62.7 | E25: 93.2 | F25: 82.7 | G25: 77.9 | H25: 63.7 | I25: 62.7 | J25: 78.8 | K25: 74.9 | L25: 77.05 | M25: 65.9 | N25: 80.95 | O25: 64.4 | P25: 72.7 | Q25: 62.9 | R25: 56.9 | T25: 73
A26: =A25+1/120 -> 0.1916666667 | B26: 78.4 | C26: 73.05 | D26: 62.6 | E26: 93.05 | F26: 82.8 | G26: 78.5 | H26: 63 | I26: 63.4 | J26: 81.4 | M26: 66.1 | N26: 80.2 | P26: 72.7 | Q26: 62.8 | R26: 57.6 | T26: 73.5
A27: =A26+1/120 -> 0.2 | C27: 73.35 | E27: 90.9 | F27: 82.3 | I27: 63.9 | J27: 83.2 | M27: 66.9 | Q27: 63.3 | R27: 57.8
A28: =A27+1/120 -> 0.2083333333 | C28: 73 | F28: 81.9 | J28: 84.3 | M28: 66.9 | R28: 58.8
A29: =A28+1/120 -> 0.2166666667 | C29: 72.8 | J29: 85.1
A30: =A29+1/120 -> 0.225 | C30: 73 | J30: 85.5
A31: =A30+1/120 -> 0.2333333333 | J31: 85.8
A32: =A31+1/120 -> 0.2416666667 | J32: 86.15
A33: =A32+1/120 -> 0.25 | J33: 85.85
A34: =A33+1/120 -> 0.2583333333
A35: =A34+1/120 -> 0.2666666667
A36: =A35+1/120 -> 0.275
A37: =A36+1/120 -> 0.2833333333
A38: =A37+1/120 -> 0.2916666667
A39: =A38+1/120 -> 0.3
A40: =A39+1/120 -> 0.3083333333
A41: =A40+1/120 -> 0.3166666667
A42: =A41+1/120 -> 0.325
A43: =A42+1/120 -> 0.3333333333
A44: =A43+1/120 -> 0.3416666667
A45: =A44+1/120 -> 0.35
A46: =A45+1/120 -> 0.3583333333
A47: =A46+1/120 -> 0.3666666667
A48: =A47+1/120 -> 0.375
A49: =A48+1/120 -> 0.3833333333
A50: =A49+1/120 -> 0.3916666667
A51: =A50+1/120 -> 0.4
A52: =A51+1/120 -> 0.4083333333
A53: =A52+1/120 -> 0.4166666667
A54: =A53+1/120 -> 0.425
A55: =A54+1/120 -> 0.4333333333
A56: =A55+1/120 -> 0.4416666667
A57: =A56+1/120 -> 0.45
A58: =A57+1/120 -> 0.4583333333
A59: =A58+1/120 -> 0.4666666667
A60: =A59+1/120 -> 0.475
A61: =A60+1/120 -> 0.4833333333
A62: =A61+1/120 -> 0.4916666667
A63: =A62+1/120 -> 0.5
A64: =A63+1/120 -> 0.5083333333
A65: =A64+1/120 -> 0.5166666667
A66: =A65+1/120 -> 0.525
A67: =A66+1/120 -> 0.5333333333
A68: =A67+1/120 -> 0.5416666667
A69: =A68+1/120 -> 0.55
A70: =A69+1/120 -> 0.5583333333
A71: =A70+1/120 -> 0.5666666667
A72: =A71+1/120 -> 0.575
A73: =A72+1/120 -> 0.5833333333
A74: =A73+1/120 -> 0.5916666667
A75: =A74+1/120 -> 0.6
A76: =A75+1/120 -> 0.6083333333
A77: =A76+1/120 -> 0.6166666667
A78: =A77+1/120 -> 0.625
A79: =A78+1/120 -> 0.6333333333
A80: =A79+1/120 -> 0.6416666667
A81: =A80+1/120 -> 0.65
A82: =A81+1/120 -> 0.6583333333
A83: =A82+1/120 -> 0.6666666667
A84: =A83+1/120 -> 0.675
A85: =A84+1/120 -> 0.6833333333
A86: =A85+1/120 -> 0.6916666667
A87: =A86+1/120 -> 0.7
A88: =A87+1/120 -> 0.7083333333
A89: =A88+1/120 -> 0.7166666667
A90: =A89+1/120 -> 0.725
A91: =A90+1/120 -> 0.7333333333
A92: =A91+1/120 -> 0.7416666667
A93: =A92+1/120 -> 0.75
A94: =A93+1/120 -> 0.7583333333
A95: =A94+1/120 -> 0.7666666667
A96: =A95+1/120 -> 0.775
A97: =A96+1/120 -> 0.7833333333
A98: =A97+1/120 -> 0.7916666667
A99: =A98+1/120 -> 0.8
A100: =A99+1/120 -> 0.8083333333
A101: =A100+1/120 -> 0.8166666667
A102: =A101+1/120 -> 0.825
A103: =A102+1/120 -> 0.8333333333
A104: =A103+1/120 -> 0.8416666667
A105: =A104+1/120 -> 0.85
A106: =A105+1/120 -> 0.8583333333
A107: =A106+1/120 -> 0.8666666667
A108: =A107+1/120 -> 0.875
A109: =A108+1/120 -> 0.8833333333
A110: =A109+1/120 -> 0.8916666667
A111: =A110+1/120 -> 0.9
A112: =A111+1/120 -> 0.9083333333
A113: =A112+1/120 -> 0.9166666667
A114: =A113+1/120 -> 0.925
A115: =A114+1/120 -> 0.9333333333
A116: =A115+1/120 -> 0.9416666667
A117: =A116+1/120 -> 0.95
A118: =A117+1/120 -> 0.9583333333
A119: =A118+1/120 -> 0.9666666667
A120: =A119+1/120 -> 0.975
A121: =A120+1/120 -> 0.9833333333
A122: =A121+1/120 -> 0.9916666667
A123: =A122+1/120 -> 1

Sheet w1118+R94C02->anubis(cDNA)_Day5
A1: w[1118] + R94C02->anubis(cDNA) - Day 50
A2: Median Time (s) | B2: Median Diameter (um) - Individual Animal | O2: Median Diameter (um) - All Heartbeats
A3: 0 | B3: 75.7 | C3: 79.95 | D3: 71.3 | E3: 67.5 | F3: 96.55 | G3: 94.1 | H3: 87 | I3: 66.5 | J3: 90.4 | K3: 90.7 | L3: 99.1 | M3: 80.9 | O3: 83.7
A4: =A3+1/120 -> 0.008333333333 | B4: 71.7 | C4: 74.95 | D4: 67.8 | E4: 63.8 | F4: 92.3 | G4: 88.9 | H4: 82.4 | I4: 63.8 | J4: 85.7 | K4: 86.4 | L4: 94.35 | M4: 76.9 | O4: 79.5
A5: =A4+1/120 -> 0.01666666667 | B5: 66.1 | C5: 68.5 | D5: 63 | E5: 58.4 | F5: 86.75 | G5: 82.6 | H5: 76.7 | I5: 59.5 | J5: 79.2 | K5: 80.6 | L5: 88.65 | M5: 71.3 | O5: 73.9
A6: =A5+1/120 -> 0.025 | B6: 60.1 | C6: 62.15 | D6: 58.3 | E6: 52.5 | F6: 80.8 | G6: 75.7 | H6: 70.5 | I6: 55.3 | J6: 72.3 | K6: 74.1 | L6: 81.9 | M6: 65.3 | O6: 67.7
A7: =A6+1/120 -> 0.03333333333 | B7: 54.4 | C7: 56.25 | D7: 53.7 | E7: 46.3 | F7: 74.8 | G7: 68.7 | H7: 64.6 | I7: 51 | J7: 65.7 | K7: 67.6 | L7: 75.9 | M7: 59.5 | O7: 61.7
A8: =A7+1/120 -> 0.04166666667 | B8: 49.5 | C8: 51.4 | D8: 49.6 | E8: 41.95 | F8: 69.15 | G8: 62.5 | H8: 59.1 | I8: 47.6 | J8: 59.85 | K8: 61.8 | L8: 70.65 | M8: 54.2 | O8: 56.6
A9: =A8+1/120 -> 0.05 | B9: 45.7 | C9: 47.6 | D9: 46.3 | E9: 38.7 | F9: 64.75 | G9: 57.5 | H9: 54.4 | I9: 45.2 | J9: 55.15 | K9: 56.6 | L9: 66.2 | M9: 49.9 | O9: 52.4
A10: =A9+1/120 -> 0.05833333333 | B10: 43.1 | C10: 45.3 | D10: 43.4 | E10: 36.7 | F10: 61.6 | G10: 53.6 | H10: 50.7 | I10: 43.9 | J10: 51.8 | K10: 52.5 | L10: 63.25 | M10: 46.6 | O10: 49.3
A11: =A10+1/120 -> 0.06666666667 | B11: 41.9 | C11: 44 | D11: 41.1 | E11: 35.7 | F11: 58.9 | G11: 51.3 | H11: 48.2 | I11: 43.1 | J11: 49.5 | K11: 49.3 | L11: 61.25 | M11: 44.6 | O11: 47.2
A12: =A11+1/120 -> 0.075 | B12: 41.4 | C12: 43.45 | D12: 39.5 | E12: 35.15 | F12: 57.1 | G12: 50.1 | H12: 46.6 | I12: 42.8 | J12: 48.5 | K12: 47.3 | L12: 60.3 | M12: 43.7 | O12: 45.9
A13: =A12+1/120 -> 0.08333333333 | B13: 41.4 | C13: 43.5 | D13: 38.4 | E13: 34.8 | F13: 55.75 | G13: 49.7 | H13: 46 | I13: 42.9 | J13: 48.2 | K13: 46.3 | L13: 60.2 | M13: 43.8 | O13: 45.6
A14: =A13+1/120 -> 0.09166666667 | B14: 41.9 | C14: 44 | D14: 38.1 | E14: 34.9 | F14: 54.8 | G14: 49.7 | H14: 46.4 | I14: 43.3 | J14: 49.3 | K14: 46 | L14: 60.85 | M14: 45.1 | O14: 45.9
A15: =A14+1/120 -> 0.1 | B15: 42.8 | C15: 45.4 | D15: 38.7 | E15: 35.7 | F15: 54.8 | G15: 50.4 | H15: 48.3 | I15: 43.9 | J15: 51.5 | K15: 46.4 | L15: 62.6 | M15: 47.5 | O15: 47.2
A16: =A15+1/120 -> 0.1083333333 | B16: 44.4 | C16: 48.2 | D16: 40 | E16: 37.3 | F16: 56.2 | G16: 52.5 | H16: 51.8 | I16: 45.4 | J16: 55.3 | K16: 48.1 | L16: 65.3 | M16: 50.8 | O16: 49.3
A17: =A16+1/120 -> 0.1166666667 | B17: 46.9 | C17: 52 | D17: 42.5 | E17: 40.1 | F17: 59.1 | G17: 55.4 | H17: 56.5 | I17: 48.3 | J17: 60.3 | K17: 51.4 | L17: 69.5 | M17: 55.3 | O17: 52.8
A18: =A17+1/120 -> 0.125 | B18: 50.6 | C18: 56.5 | D18: 46.1 | E18: 43.7 | F18: 63.95 | G18: 60.2 | H18: 61.8 | I18: 51.6 | J18: 66.8 | K18: 56.8 | L18: 74.9 | M18: 60.7 | O18: 57.6
A19: =A18+1/120 -> 0.1333333333 | B19: 54.8 | C19: 61.6 | D19: 50.1 | E19: 48 | F19: 70.25 | G19: 66 | H19: 68.1 | I19: 55.4 | J19: 72.5 | K19: 63.2 | L19: 80.3 | M19: 65.9 | O19: 62.9
A20: =A19+1/120 -> 0.1416666667 | B20: 58.4 | C20: 66.4 | D20: 53.8 | E20: 52.25 | F20: 76.5 | G20: 71.8 | H20: 73.8 | I20: 58.7 | J20: 76.5 | K20: 69.3 | L20: 84.55 | M20: 70 | O20: 68.4
A21: =A20+1/120 -> 0.15 | B21: 61.2 | C21: 71.15 | D21: 57.3 | E21: 56.7 | F21: 81.85 | G21: 77.3 | H21: 79 | I21: 60.5 | J21: 79.5 | K21: 74.4 | L21: 88 | M21: 73.2 | O21: 73
A22: =A21+1/120 -> 0.1583333333 | B22: 63.6 | C22: 75.1 | D22: 60.1 | E22: 60.8 | F22: 85.4 | G22: 81.6 | H22: 82.5 | I22: 61.65 | J22: 81.3 | K22: 77.6 | L22: 90.6 | M22: 75.2 | O22: 76.4
A23: =A22+1/120 -> 0.1666666667 | B23: 65.5 | C23: 76.15 | D23: 62.7 | E23: 63.25 | F23: 87.7 | G23: 85.3 | H23: 81.3 | I23: 62.5 | J23: 83.2 | K23: 80.55 | L23: 92.9 | M23: 76.4 | O23: 78.55
A24: =A23+1/120 -> 0.175 | B24: 67.2 | C24: 76.2 | D24: 64.5 | E24: 63.8 | F24: 89.05 | G24: 87.5 | H24: 79.7 | I24: 63.4 | J24: 84.7 | K24: 83.4 | L24: 94.3 | M24: 76.55 | O24: 79.5
A25: =A24+1/120 -> 0.1833333333 | B25: 69.5 | C25: 75.2 | D25: 65.25 | E25: 64 | F25: 90.6 | G25: 87.6 | I25: 64.3 | J25: 85.8 | K25: 86.5 | L25: 95.05 | M25: 75.3 | O25: 79.9
A26: =A25+1/120 -> 0.1916666667 | B26: 71.5 | C26: 73.55 | D26: 65.3 | E26: 63.7 | F26: 90.85 | G26: 86.75 | I26: 65 | J26: 85.5 | K26: 88.6 | L26: 95.2 | M26: 74.25 | O26: 79.8
A27: =A26+1/120 -> 0.2 | B27: 72.8 | D27: 65.9 | E27: 63 | F27: 90.5 | G27: 86.9 | J27: 85.5 | K27: 89.45 | L27: 95.1 | M27: 73.8 | O27: 79.3
A28: =A27+1/120 -> 0.2083333333 | B28: 73.3 | D28: 65.6 | E28: 62.5 | F28: 90.5 | J28: 85 | K28: 88.3 | L28: 95.1
A29: =A28+1/120 -> 0.2166666667 | B29: 73.2 | F29: 90.4 | K29: 86.9 | L29: 95.55
A30: =A29+1/120 -> 0.225 | B30: 72.4 | K30: 85
A31: =A30+1/120 -> 0.2333333333
A32: =A31+1/120 -> 0.2416666667
A33: =A32+1/120 -> 0.25
A34: =A33+1/120 -> 0.2583333333
A35: =A34+1/120 -> 0.2666666667
A36: =A35+1/120 -> 0.275
A37: =A36+1/120 -> 0.2833333333
A38: =A37+1/120 -> 0.2916666667
A39: =A38+1/120 -> 0.3
A40: =A39+1/120 -> 0.3083333333
A41: =A40+1/120 -> 0.3166666667
A42: =A41+1/120 -> 0.325
A43: =A42+1/120 -> 0.3333333333
A44: =A43+1/120 -> 0.3416666667
A45: =A44+1/120 -> 0.35
A46: =A45+1/120 -> 0.3583333333
A47: =A46+1/120 -> 0.3666666667
A48: =A47+1/120 -> 0.375
A49: =A48+1/120 -> 0.3833333333
A50: =A49+1/120 -> 0.3916666667
A51: =A50+1/120 -> 0.4
A52: =A51+1/120 -> 0.4083333333
A53: =A52+1/120 -> 0.4166666667
A54: =A53+1/120 -> 0.425
A55: =A54+1/120 -> 0.4333333333
A56: =A55+1/120 -> 0.4416666667
A57: =A56+1/120 -> 0.45
A58: =A57+1/120 -> 0.4583333333
A59: =A58+1/120 -> 0.4666666667
A60: =A59+1/120 -> 0.475
A61: =A60+1/120 -> 0.4833333333
A62: =A61+1/120 -> 0.4916666667
A63: =A62+1/120 -> 0.5
A64: =A63+1/120 -> 0.5083333333
A65: =A64+1/120 -> 0.5166666667
A66: =A65+1/120 -> 0.525
A67: =A66+1/120 -> 0.5333333333
A68: =A67+1/120 -> 0.5416666667
A69: =A68+1/120 -> 0.55
A70: =A69+1/120 -> 0.5583333333
A71: =A70+1/120 -> 0.5666666667
A72: =A71+1/120 -> 0.575
A73: =A72+1/120 -> 0.5833333333
A74: =A73+1/120 -> 0.5916666667
A75: =A74+1/120 -> 0.6
A76: =A75+1/120 -> 0.6083333333
A77: =A76+1/120 -> 0.6166666667
A78: =A77+1/120 -> 0.625
A79: =A78+1/120 -> 0.6333333333
A80: =A79+1/120 -> 0.6416666667
A81: =A80+1/120 -> 0.65
A82: =A81+1/120 -> 0.6583333333
A83: =A82+1/120 -> 0.6666666667
A84: =A83+1/120 -> 0.675
A85: =A84+1/120 -> 0.6833333333
A86: =A85+1/120 -> 0.6916666667
A87: =A86+1/120 -> 0.7
A88: =A87+1/120 -> 0.7083333333
A89: =A88+1/120 -> 0.7166666667
A90: =A89+1/120 -> 0.725
A91: =A90+1/120 -> 0.7333333333
A92: =A91+1/120 -> 0.7416666667
A93: =A92+1/120 -> 0.75
A94: =A93+1/120 -> 0.7583333333
A95: =A94+1/120 -> 0.7666666667
A96: =A95+1/120 -> 0.775
A97: =A96+1/120 -> 0.7833333333
A98: =A97+1/120 -> 0.7916666667
A99: =A98+1/120 -> 0.8
A100: =A99+1/120 -> 0.8083333333
A101: =A100+1/120 -> 0.8166666667
A102: =A101+1/120 -> 0.825
A103: =A102+1/120 -> 0.8333333333
A104: =A103+1/120 -> 0.8416666667
A105: =A104+1/120 -> 0.85
A106: =A105+1/120 -> 0.8583333333
A107: =A106+1/120 -> 0.8666666667
A108: =A107+1/120 -> 0.875
A109: =A108+1/120 -> 0.8833333333
A110: =A109+1/120 -> 0.8916666667
A111: =A110+1/120 -> 0.9
A112: =A111+1/120 -> 0.9083333333
A113: =A112+1/120 -> 0.9166666667
A114: =A113+1/120 -> 0.925
A115: =A114+1/120 -> 0.9333333333
A116: =A115+1/120 -> 0.9416666667
A117: =A116+1/120 -> 0.95
A118: =A117+1/120 -> 0.9583333333
A119: =A118+1/120 -> 0.9666666667
A120: =A119+1/120 -> 0.975
A121: =A120+1/120 -> 0.9833333333
A122: =A121+1/120 -> 0.9916666667
A123: =A122+1/120 -> 1
A124: =A123+1/120 -> 1.008333333
A125: =A124+1/120 -> 1.016666667
A126: =A125+1/120 -> 1.025
A127: =A126+1/120 -> 1.033333333
A128: =A127+1/120 -> 1.041666667
A129: =A128+1/120 -> 1.05
A130: =A129+1/120 -> 1.058333333
A131: =A130+1/120 -> 1.066666667
A132: =A131+1/120 -> 1.075
A133: =A132+1/120 -> 1.083333333
A134: =A133+1/120 -> 1.091666667
A135: =A134+1/120 -> 1.1
A136: =A135+1/120 -> 1.108333333
A137: =A136+1/120 -> 1.116666667
A138: =A137+1/120 -> 1.125
A139: =A138+1/120 -> 1.133333333
A140: =A139+1/120 -> 1.141666667
A141: =A140+1/120 -> 1.15
A142: =A141+1/120 -> 1.158333333
A143: =A142+1/120 -> 1.166666667
A144: =A143+1/120 -> 1.175
A145: =A144+1/120 -> 1.183333333
A146: =A145+1/120 -> 1.191666667
A147: =A146+1/120 -> 1.2
A148: =A147+1/120 -> 1.208333333
A149: =A148+1/120 -> 1.216666667
A150: =A149+1/120 -> 1.225
A151: =A150+1/120 -> 1.233333333
A152: =A151+1/120 -> 1.241666667
A153: =A152+1/120 -> 1.25
A154: =A153+1/120 -> 1.258333333
A155: =A154+1/120 -> 1.266666667
A156: =A155+1/120 -> 1.275
A157: =A156+1/120 -> 1.283333333
A158: =A157+1/120 -> 1.291666667
A159: =A158+1/120 -> 1.3
A160: =A159+1/120 -> 1.308333333
A161: =A160+1/120 -> 1.316666667
A162: =A161+1/120 -> 1.325
A163: =A162+1/120 -> 1.333333333
A164: =A163+1/120 -> 1.341666667
A165: =A164+1/120 -> 1.35
A166: =A165+1/120 -> 1.358333333
A167: =A166+1/120 -> 1.366666667
A168: =A167+1/120 -> 1.375
A169: =A168+1/120 -> 1.383333333
A170: =A169+1/120 -> 1.391666667
A171: =A170+1/120 -> 1.4
A172: =A171+1/120 -> 1.408333333
A173: =A172+1/120 -> 1.416666667
A174: =A173+1/120 -> 1.425
A175: =A174+1/120 -> 1.433333333
A176: =A175+1/120 -> 1.441666667
A177: =A176+1/120 -> 1.45
A178: =A177+1/120 -> 1.458333333
A179: =A178+1/120 -> 1.466666667
A180: =A179+1/120 -> 1.475
A181: =A180+1/120 -> 1.483333333
A182: =A181+1/120 -> 1.491666667
A183: =A182+1/120 -> 1.5
A184: =A183+1/120 -> 1.508333333
A185: =A184+1/120 -> 1.516666667
A186: =A185+1/120 -> 1.525
A187: =A186+1/120 -> 1.533333333
A188: =A187+1/120 -> 1.541666667
A189: =A188+1/120 -> 1.55
A190: =A189+1/120 -> 1.558333333
A191: =A190+1/120 -> 1.566666667
A192: =A191+1/120 -> 1.575
A193: =A192+1/120 -> 1.583333333
A194: =A193+1/120 -> 1.591666667
A195: =A194+1/120 -> 1.6
A196: =A195+1/120 -> 1.608333333
A197: =A196+1/120 -> 1.616666667
A198: =A197+1/120 -> 1.625
A199: =A198+1/120 -> 1.633333333
A200: =A199+1/120 -> 1.641666667
... 162 more rows

Sheet anubis_e00867_CleanExcision__Da
A1: anubis/e00867[CleanExcision] - Day 50
A2: Median Time (s) | B2: Median Diameter (um) - Individual Animal | P2: Median Diameter (um) - All Heartbeats
A3: 0 | B3: 82 | C3: 87.4 | D3: 73.6 | E3: 73.4 | F3: 93.3 | G3: 95.2 | H3: 75.4 | I3: 81 | J3: 84.7 | K3: 94.5 | L3: 77.5 | M3: 82.2 | N3: 67.8 | P3: 82.7
A4: =A3+1/120 -> 0.008333333333 | B4: 80.8 | C4: 83.6 | D4: 71.15 | E4: 71.3 | F4: 90.8 | G4: 92.2 | H4: 74.4 | I4: 79 | J4: 81.4 | K4: 90.05 | L4: 75.9 | M4: 78.6 | N4: 66.6 | P4: 79.9
A5: =A4+1/120 -> 0.01666666667 | B5: 78.4 | C5: 78.1 | D5: 67.6 | E5: 67.9 | F5: 87.3 | G5: 87.2 | H5: 71.7 | I5: 75.9 | J5: 76.4 | K5: 84.4 | L5: 73.1 | M5: 73.55 | N5: 64.8 | P5: 76
A6: =A5+1/120 -> 0.025 | B6: 74.7 | C6: 71.7 | D6: 63.4 | E6: 63.9 | F6: 82.3 | G6: 81.1 | H6: 68.25 | I6: 72 | J6: 69.6 | K6: 78.7 | L6: 69.1 | M6: 68 | N6: 62.7 | P6: 71.1
A7: =A6+1/120 -> 0.03333333333 | B7: 70.7 | C7: 66.1 | D7: 59.05 | E7: 59.1 | F7: 76.6 | G7: 74.8 | H7: 63.9 | I7: 67.6 | J7: 63.1 | K7: 73.1 | L7: 64.2 | M7: 62.65 | N7: 59.9 | P7: 66.1
A8: =A7+1/120 -> 0.04166666667 | B8: 66.3 | C8: 61.4 | D8: 55.5 | E8: 54.6 | F8: 71.3 | G8: 69.2 | H8: 59.9 | I8: 63 | J8: 57.1 | K8: 68.5 | L8: 59.7 | M8: 57.65 | N8: 55.9 | P8: 61.5
A9: =A8+1/120 -> 0.05 | B9: 62.4 | C9: 57 | D9: 52.7 | E9: 50.75 | F9: 66.1 | G9: 63.9 | H9: 56 | I9: 58.9 | J9: 52.4 | K9: 64.3 | L9: 56 | M9: 53.15 | N9: 51.3 | P9: 57.4
A10: =A9+1/120 -> 0.05833333333 | B10: 59.1 | C10: 53.7 | D10: 51.1 | E10: 48.2 | F10: 61.1 | G10: 59.5 | H10: 52.6 | I10: 55.3 | J10: 48.75 | K10: 60.8 | L10: 53.1 | M10: 50 | N10: 46.9 | P10: 54.1
A11: =A10+1/120 -> 0.06666666667 | B11: 56.3 | C11: 51.6 | D11: 50.2 | E11: 46.35 | F11: 57.7 | G11: 56.5 | H11: 50 | I11: 52.3 | J11: 46.05 | K11: 57.7 | L11: 50.8 | M11: 48.2 | N11: 43.5 | P11: 51.6
A12: =A11+1/120 -> 0.075 | B12: 53.7 | C12: 50.5 | D12: 50 | E12: 45.7 | F12: 55.5 | G12: 54.4 | H12: 48.1 | I12: 50 | J12: 44.6 | K12: 55.3 | L12: 49.8 | M12: 47.4 | N12: 41.6 | P12: 50.1
A13: =A12+1/120 -> 0.08333333333 | B13: 51.4 | C13: 50 | D13: 49.8 | E13: 45.2 | F13: 53.9 | G13: 52.8 | H13: 47 | I13: 48.65 | J13: 43.75 | K13: 53.8 | L13: 48.6 | M13: 47.1 | N13: 40.8 | P13: 49
A14: =A13+1/120 -> 0.09166666667 | B14: 49.1 | C14: 49.8 | D14: 49.8 | E14: 44.4 | F14: 53.1 | G14: 51.7 | H14: 46.4 | I14: 48.1 | J14: 43.5 | K14: 52.9 | L14: 48.3 | M14: 47.3 | N14: 40.5 | P14: 48.4
A15: =A14+1/120 -> 0.1 | B15: 47.6 | C15: 49.9 | D15: 49.7 | E15: 44.4 | F15: 53.2 | G15: 50.9 | H15: 46 | I15: 47.9 | J15: 43.15 | K15: 52.5 | L15: 47.9 | M15: 47.6 | N15: 40.2 | P15: 48
A16: =A15+1/120 -> 0.1083333333 | B16: 46.8 | C16: 50.3 | D16: 49.7 | E16: 44.5 | F16: 54.2 | G16: 50.9 | H16: 45.95 | I16: 47.6 | J16: 42.7 | K16: 52.3 | L16: 47.9 | M16: 48.55 | N16: 40.1 | P16: 48
A17: =A16+1/120 -> 0.1166666667 | B17: 46.8 | C17: 51 | D17: 50.1 | E17: 44.5 | F17: 56.7 | G17: 51.9 | H17: 46.35 | I17: 47.5 | J17: 42.8 | K17: 52.2 | L17: 48.2 | M17: 49.95 | N17: 40.2 | P17: 48.5
A18: =A17+1/120 -> 0.125 | B18: 47.3 | C18: 52.4 | D18: 51.3 | E18: 45.15 | F18: 60.6 | G18: 54.1 | H18: 47.3 | I18: 48.4 | J18: 43.3 | K18: 52 | L18: 49.2 | M18: 52.1 | N18: 40.7 | P18: 49.5
A19: =A18+1/120 -> 0.1333333333 | B19: 49.2 | C19: 54.5 | D19: 53.4 | E19: 46.6 | F19: 65.9 | G19: 58.7 | H19: 48.6 | I19: 51.35 | J19: 44.95 | K19: 52 | L19: 51.2 | M19: 54.85 | N19: 41.7 | P19: 51.5
A20: =A19+1/120 -> 0.1416666667 | B20: 52.3 | C20: 57.5 | D20: 56.3 | E20: 48.1 | F20: 71.35 | G20: 65.3 | H20: 51.7 | I20: 55.35 | J20: 48.3 | K20: 52.2 | L20: 54.7 | M20: 58.15 | N20: 43.6 | P20: 54.3
A21: =A20+1/120 -> 0.15 | B21: 56.2 | C21: 61.2 | D21: 59.5 | E21: 51.15 | F21: 76.6 | G21: 71.9 | H21: 55.9 | I21: 60.1 | J21: 53.05 | K21: 52.8 | L21: 59.2 | M21: 61.55 | N21: 46.7 | P21: 58.3
A22: =A21+1/120 -> 0.1583333333 | B22: 60.4 | C22: 64.5 | D22: 62.15 | E22: 55.1 | F22: 81.9 | G22: 77.6 | H22: 60.1 | I22: 64.6 | J22: 58.85 | K22: 54.05 | L22: 63.7 | M22: 64.35 | N22: 50.4 | P22: 62.2
A23: =A22+1/120 -> 0.1666666667 | B23: 64.6 | C23: 67.4 | D23: 64.1 | E23: 59.6 | F23: 86.1 | G23: 81.6 | H23: 63.55 | I23: 68.2 | J23: 64.5 | K23: 57.1 | L23: 67.6 | M23: 67.4 | N23: 54.1 | P23: 65.7
A24: =A23+1/120 -> 0.175 | B24: 68.5 | C24: 69.7 | D24: 65.3 | E24: 63.3 | F24: 87.6 | G24: 84.8 | H24: 66.25 | I24: 71.2 | J24: 69 | K24: 61.2 | L24: 70.5 | M24: 69.8 | N24: 57.6 | P24: 68.8
A25: =A24+1/120 -> 0.1833333333 | B25: 71.6 | C25: 71.7 | D25: 66.4 | E25: 65.8 | F25: 88.85 | G25: 86.9 | H25: 68.25 | I25: 73.25 | J25: 72.55 | K25: 65.95 | L25: 72.3 | M25: 71.9 | N25: 60.7 | P25: 71.2
A26: =A25+1/120 -> 0.1916666667 | B26: 74.1 | C26: 73.2 | D26: 66.95 | E26: 67.6 | F26: 89.5 | G26: 88.8 | H26: 69.7 | I26: 74.8 | J26: 75.3 | K26: 70.7 | L26: 73.6 | M26: 73.3 | N26: 63.2 | P26: 73.1
A27: =A26+1/120 -> 0.2 | B27: 76 | C27: 74.5 | D27: 67.3 | E27: 68.8 | F27: 90 | G27: 90 | H27: 70.5 | I27: 76.3 | J27: 77.6 | K27: 74.9 | L27: 74.5 | M27: 73.85 | N27: 64.8 | P27: 74.7
A28: =A27+1/120 -> 0.2083333333 | B28: 77.5 | C28: 75.1 | D28: 67.8 | E28: 69.8 | F28: 90.6 | G28: 90.9 | H28: 70.4 | I28: 77.5 | J28: 79.35 | K28: 78.2 | L28: 75 | M28: 74.4 | N28: 65.9 | P28: 75.9
A29: =A28+1/120 -> 0.2166666667 | B29: 78.5 | C29: 74.95 | D29: 68.2 | E29: 70.65 | F29: 91.45 | G29: 91.5 | H29: 69.9 | I29: 78.2 | J29: 80.3 | K29: 79.95 | L29: 75.5 | M29: 74.8 | N29: 66.6 | P29: 77
A30: =A29+1/120 -> 0.225 | B30: 79.3 | C30: 73.4 | D30: 68.7 | E30: 71.4 | F30: 91.5 | G30: 92 | H30: 69.55 | I30: 79.05 | J30: 81.8 | K30: 80.7 | L30: 76 | M30: 75.6 | N30: 66.9 | P30: 77.9
A31: =A30+1/120 -> 0.2333333333 | B31: 79.9 | C31: 72 | D31: 68.8 | E31: 71.4 | F31: 91.35 | G31: 92.6 | H31: 70 | I31: 79.7 | J31: 82.6 | K31: 81.5 | L31: 77 | M31: 76 | N31: 67.5 | P31: 78.7
A32: =A31+1/120 -> 0.2416666667 | B32: 80.3 | C32: 72.3 | D32: 69.3 | E32: 71 | F32: 91 | G32: 93.25 | H32: 70.5 | I32: 79.9 | J32: 82.8 | K32: 82.1 | L32: 78.05 | M32: 76.5 | N32: 68.1 | P32: 79.2
A33: =A32+1/120 -> 0.25 | B33: 80.6 | D33: 69.55 | E33: 70.6 | F33: 90.2 | G33: 93.4 | H33: 71.2 | I33: 80.35 | J33: 83.1 | K33: 82.6 | L33: 79.1 | M33: 77.5 | N33: 69 | P33: 79.7
A34: =A33+1/120 -> 0.2583333333 | B34: 81 | E34: 69.9 | H34: 72.3 | I34: 80.3 | J34: 83.5 | K34: 82.9 | L34: 80.4 | M34: 78.7 | N34: 70
A35: =A34+1/120 -> 0.2666666667 | B35: 81.4 | H35: 73.75 | K35: 83.3 | N35: 72.25
A36: =A35+1/120 -> 0.275 | B36: 81.8 | K36: 84
A37: =A36+1/120 -> 0.2833333333 | B37: 82.3
A38: =A37+1/120 -> 0.2916666667
A39: =A38+1/120 -> 0.3
A40: =A39+1/120 -> 0.3083333333
A41: =A40+1/120 -> 0.3166666667
A42: =A41+1/120 -> 0.325
A43: =A42+1/120 -> 0.3333333333
A44: =A43+1/120 -> 0.3416666667
A45: =A44+1/120 -> 0.35
A46: =A45+1/120 -> 0.3583333333
A47: =A46+1/120 -> 0.3666666667
A48: =A47+1/120 -> 0.375
A49: =A48+1/120 -> 0.3833333333
A50: =A49+1/120 -> 0.3916666667
A51: =A50+1/120 -> 0.4
A52: =A51+1/120 -> 0.4083333333
A53: =A52+1/120 -> 0.4166666667
A54: =A53+1/120 -> 0.425
A55: =A54+1/120 -> 0.4333333333
A56: =A55+1/120 -> 0.4416666667
A57: =A56+1/120 -> 0.45
A58: =A57+1/120 -> 0.4583333333
A59: =A58+1/120 -> 0.4666666667
A60: =A59+1/120 -> 0.475
A61: =A60+1/120 -> 0.4833333333
A62: =A61+1/120 -> 0.4916666667
A63: =A62+1/120 -> 0.5
A64: =A63+1/120 -> 0.5083333333
A65: =A64+1/120 -> 0.5166666667
A66: =A65+1/120 -> 0.525
A67: =A66+1/120 -> 0.5333333333
A68: =A67+1/120 -> 0.5416666667
A69: =A68+1/120 -> 0.55
A70: =A69+1/120 -> 0.5583333333
A71: =A70+1/120 -> 0.5666666667
A72: =A71+1/120 -> 0.575
A73: =A72+1/120 -> 0.5833333333
A74: =A73+1/120 -> 0.5916666667
A75: =A74+1/120 -> 0.6
A76: =A75+1/120 -> 0.6083333333
A77: =A76+1/120 -> 0.6166666667
A78: =A77+1/120 -> 0.625
A79: =A78+1/120 -> 0.6333333333
A80: =A79+1/120 -> 0.6416666667
A81: =A80+1/120 -> 0.65
A82: =A81+1/120 -> 0.6583333333
A83: =A82+1/120 -> 0.6666666667
A84: =A83+1/120 -> 0.675
A85: =A84+1/120 -> 0.6833333333
A86: =A85+1/120 -> 0.6916666667
A87: =A86+1/120 -> 0.7
A88: =A87+1/120 -> 0.7083333333
A89: =A88+1/120 -> 0.7166666667
A90: =A89+1/120 -> 0.725
A91: =A90+1/120 -> 0.7333333333
A92: =A91+1/120 -> 0.7416666667
A93: =A92+1/120 -> 0.75
A94: =A93+1/120 -> 0.7583333333
A95: =A94+1/120 -> 0.7666666667
A96: =A95+1/120 -> 0.775
A97: =A96+1/120 -> 0.7833333333
A98: =A97+1/120 -> 0.7916666667
A99: =A98+1/120 -> 0.8
A100: =A99+1/120 -> 0.8083333333
A101: =A100+1/120 -> 0.8166666667
A102: =A101+1/120 -> 0.825
A103: =A102+1/120 -> 0.8333333333
A104: =A103+1/120 -> 0.8416666667
A105: =A104+1/120 -> 0.85
A106: =A105+1/120 -> 0.8583333333
A107: =A106+1/120 -> 0.8666666667
A108: =A107+1/120 -> 0.875
A109: =A108+1/120 -> 0.8833333333
A110: =A109+1/120 -> 0.8916666667
A111: =A110+1/120 -> 0.9
A112: =A111+1/120 -> 0.9083333333
A113: =A112+1/120 -> 0.9166666667
A114: =A113+1/120 -> 0.925
A115: =A114+1/120 -> 0.9333333333
A116: =A115+1/120 -> 0.9416666667
A117: =A116+1/120 -> 0.95
A118: =A117+1/120 -> 0.9583333333
A119: =A118+1/120 -> 0.9666666667
A120: =A119+1/120 -> 0.975
A121: =A120+1/120 -> 0.9833333333
A122: =A121+1/120 -> 0.9916666667
A123: =A122+1/120 -> 1
A124: =A123+1/120 -> 1.008333333
A125: =A124+1/120 -> 1.016666667
A126: =A125+1/120 -> 1.025
A127: =A126+1/120 -> 1.033333333
A128: =A127+1/120 -> 1.041666667
A129: =A128+1/120 -> 1.05
A130: =A129+1/120 -> 1.058333333
A131: =A130+1/120 -> 1.066666667
A132: =A131+1/120 -> 1.075
A133: =A132+1/120 -> 1.083333333
A134: =A133+1/120 -> 1.091666667
A135: =A134+1/120 -> 1.1
A136: =A135+1/120 -> 1.108333333
A137: =A136+1/120 -> 1.116666667
A138: =A137+1/120 -> 1.125
A139: =A138+1/120 -> 1.133333333
A140: =A139+1/120 -> 1.141666667
A141: =A140+1/120 -> 1.15
A142: =A141+1/120 -> 1.158333333
A143: =A142+1/120 -> 1.166666667
A144: =A143+1/120 -> 1.175
A145: =A144+1/120 -> 1.183333333
A146: =A145+1/120 -> 1.191666667
A147: =A146+1/120 -> 1.2
A148: =A147+1/120 -> 1.208333333
A149: =A148+1/120 -> 1.216666667
A150: =A149+1/120 -> 1.225
A151: =A150+1/120 -> 1.233333333
A152: =A151+1/120 -> 1.241666667
A153: =A152+1/120 -> 1.25
A154: =A153+1/120 -> 1.258333333
A155: =A154+1/120 -> 1.266666667
A156: =A155+1/120 -> 1.275
A157: =A156+1/120 -> 1.283333333
A158: =A157+1/120 -> 1.291666667
A159: =A158+1/120 -> 1.3
A160: =A159+1/120 -> 1.308333333
A161: =A160+1/120 -> 1.316666667
A162: =A161+1/120 -> 1.325
A163: =A162+1/120 -> 1.333333333
A164: =A163+1/120 -> 1.341666667
A165: =A164+1/120 -> 1.35
A166: =A165+1/120 -> 1.358333333
A167: =A166+1/120 -> 1.366666667
A168: =A167+1/120 -> 1.375
A169: =A168+1/120 -> 1.383333333
A170: =A169+1/120 -> 1.391666667
A171: =A170+1/120 -> 1.4
A172: =A171+1/120 -> 1.408333333
A173: =A172+1/120 -> 1.416666667
A174: =A173+1/120 -> 1.425
A175: =A174+1/120 -> 1.433333333
A176: =A175+1/120 -> 1.441666667
A177: =A176+1/120 -> 1.45
A178: =A177+1/120 -> 1.458333333
A179: =A178+1/120 -> 1.466666667
A180: =A179+1/120 -> 1.475
A181: =A180+1/120 -> 1.483333333
A182: =A181+1/120 -> 1.491666667
A183: =A182+1/120 -> 1.5
A184: =A183+1/120 -> 1.508333333
A185: =A184+1/120 -> 1.516666667
A186: =A185+1/120 -> 1.525
A187: =A186+1/120 -> 1.533333333
A188: =A187+1/120 -> 1.541666667
A189: =A188+1/120 -> 1.55
A190: =A189+1/120 -> 1.558333333
A191: =A190+1/120 -> 1.566666667
A192: =A191+1/120 -> 1.575
A193: =A192+1/120 -> 1.583333333
A194: =A193+1/120 -> 1.591666667
A195: =A194+1/120 -> 1.6
A196: =A195+1/120 -> 1.608333333
A197: =A196+1/120 -> 1.616666667
A198: =A197+1/120 -> 1.625
A199: =A198+1/120 -> 1.633333333
A200: =A199+1/120 -> 1.641666667
... 162 more rows

Sheet anubis_Day50 - anubis - Day 50
A1: anubis - Day 50
A2: Median Time (s) | B2: Median Diameter (um) - Individual Animal NOTE: 0 = Heart was Constitutively Contracted in that Animal | R2: Median Diameter (um) - All Heartbeats
A3: 0 | B3: 0 | C3: 90.15 | D3: 38.5 | E3: 78.05 | F3: 44.95 | G3: 0 | H3: 57.45 | I3: 47.4 | J3: 44.6 | K3: 54.2 | L3: 36 | M3: 44.5 | N3: 83.3 | O3: 79.4 | P3: 30.5 | R3: 72.2
A4: =A3+1/120 -> 0.008333333333 | B4: 0 | C4: 85.85 | D4: 38 | E4: 77.1 | F4: 42.85 | G4: 0 | H4: 56.5 | I4: 46.9 | J4: 44 | K4: 53.6 | L4: 35.6 | M4: 43.8 | N4: 80.5 | O4: 77.3 | P4: 29.9 | R4: 70.7
A5: =A4+1/120 -> 0.01666666667 | B5: 0 | C5: 80.7 | D5: 37.1 | E5: 75.65 | F5: 40.6 | G5: 0 | H5: 55.2 | I5: 46.3 | J5: 43.3 | K5: 52.8 | L5: 34.9 | M5: 42.9 | N5: 76.3 | O5: 73.6 | P5: 29.3 | R5: 67.5
A6: =A5+1/120 -> 0.025 | B6: 0 | C6: 74.9 | D6: 36.7 | E6: 73.6 | F6: 38.3 | G6: 0 | H6: 52.75 | I6: 45.3 | J6: 42.6 | K6: 51.8 | L6: 34.3 | M6: 41.9 | N6: 70.9 | O6: 69.1 | P6: 28.7 | R6: 63.9
A7: =A6+1/120 -> 0.03333333333 | B7: 0 | C7: 69.4 | D7: 36.4 | E7: 71.8 | F7: 37.45 | G7: 0 | H7: 50.35 | I7: 44.8 | J7: 42.1 | K7: 50.7 | L7: 33.8 | M7: 40.7 | N7: 65.5 | O7: 64.3 | P7: 28.1 | R7: 60.8
A8: =A7+1/120 -> 0.04166666667 | B8: 0 | C8: 64.05 | D8: 35.8 | E8: 69.8 | F8: 36.95 | G8: 0 | H8: 49.3 | I8: 44.5 | J8: 41.7 | K8: 49.5 | L8: 33.3 | M8: 39.5 | N8: 60.8 | O8: 59.5 | P8: 28 | R8: 57.5
A9: =A8+1/120 -> 0.05 | B9: 0 | C9: 59.6 | D9: 34.6 | E9: 68.2 | F9: 36.6 | G9: 0 | H9: 49.1 | I9: 44.4 | J9: 41.5 | K9: 48.3 | L9: 33 | M9: 38.5 | N9: 56.7 | O9: 55.4 | P9: 28 | R9: 54.3
A10: =A9+1/120 -> 0.05833333333 | B10: 0 | C10: 56.3 | D10: 33.8 | E10: 66.75 | F10: 36.5 | G10: 0 | H10: 48.95 | I10: 43.8 | J10: 41.5 | K10: 47.4 | L10: 32.6 | M10: 37.4 | N10: 53.1 | O10: 51.6 | P10: 27.9 | R10: 51.7
A11: =A10+1/120 -> 0.06666666667 | B11: 0 | C11: 53.8 | D11: 33 | E11: 64 | F11: 36.15 | G11: 0 | H11: 48.15 | I11: 43.1 | J11: 41 | K11: 46.8 | L11: 32.3 | M11: 36.4 | N11: 50.1 | O11: 48.7 | P11: 27.8 | R11: 49.4
A12: =A11+1/120 -> 0.075 | B12: 0 | C12: 51.6 | D12: 32.4 | E12: 62.7 | F12: 35.8 | G12: 0 | H12: 47.35 | I12: 42.5 | J12: 41 | K12: 46.4 | L12: 31.8 | M12: 35.5 | N12: 48.6 | O12: 46.9 | P12: 28 | R12: 47.7
A13: =A12+1/120 -> 0.08333333333 | B13: 0 | C13: 49.9 | D13: 31.8 | E13: 61.05 | F13: 36.2 | G13: 0 | H13: 46.6 | I13: 42.2 | J13: 40.9 | K13: 46 | L13: 31.4 | M13: 34.8 | N13: 47.8 | O13: 45.3 | P13: 28.5 | R13: 46.5
A14: =A13+1/120 -> 0.09166666667 | B14: 0 | C14: 48.4 | D14: 31.3 | E14: 60.05 | F14: 36.3 | G14: 0 | H14: 46.5 | I14: 42 | J14: 40.9 | K14: 45.6 | L14: 31.1 | M14: 34.5 | N14: 47.1 | O14: 44.4 | P14: 28.7 | R14: 45.7
A15: =A14+1/120 -> 0.1 | B15: 0 | C15: 47.2 | D15: 30.7 | E15: 59.05 | F15: 36.6 | G15: 0 | H15: 46.5 | I15: 41.5 | J15: 40.6 | K15: 45.3 | L15: 30.9 | M15: 34.3 | N15: 47 | O15: 44 | P15: 28.5 | R15: 45.2
A16: =A15+1/120 -> 0.1083333333 | B16: 0 | C16: 46.15 | D16: 30.7 | E16: 58.5 | F16: 36.85 | G16: 0 | H16: 47.05 | I16: 41 | J16: 40.4 | K16: 44.7 | L16: 30.7 | M16: 34.2 | N16: 47.1 | O16: 43.6 | P16: 28.2 | R16: 44.7
A17: =A16+1/120 -> 0.1166666667 | B17: 0 | C17: 45.7 | D17: 30.4 | E17: 58 | F17: 36.6 | G17: 0 | H17: 48.05 | I17: 40.8 | J17: 40.1 | K17: 44.6 | L17: 30.4 | M17: 34 | N17: 47.7 | O17: 43.5 | P17: 28.2 | R17: 44.6
A18: =A17+1/120 -> 0.125 | B18: 0 | C18: 45.85 | D18: 30 | E18: 57.35 | F18: 37.1 | G18: 0 | H18: 48.15 | I18: 40.5 | J18: 39.9 | K18: 44.7 | L18: 30.2 | M18: 34.1 | N18: 48.5 | O18: 43.5 | P18: 28.3 | R18: 44.8
A19: =A18+1/120 -> 0.1333333333 | B19: 0 | C19: 46.5 | D19: 29.7 | E19: 57.15 | F19: 37.3 | G19: 0 | H19: 48.75 | I19: 40.4 | J19: 39.9 | K19: 44.7 | L19: 30 | M19: 34.3 | N19: 49.7 | O19: 43.5 | P19: 28.5 | R19: 45.1
A20: =A19+1/120 -> 0.1416666667 | B20: 0 | C20: 47.8 | D20: 30.2 | E20: 57.3 | F20: 37.5 | G20: 0 | H20: 48.15 | I20: 40 | J20: 40 | K20: 45 | L20: 29.7 | M20: 34.7 | N20: 51.85 | O20: 43.9 | P20: 28.7 | R20: 45.6
A21: =A20+1/120 -> 0.15 | B21: 0 | C21: 50.1 | D21: 30.5 | E21: 57.95 | F21: 37.6 | G21: 0 | H21: 47.45 | I21: 40.2 | J21: 40 | K21: 45.7 | L21: 29.8 | M21: 35.1 | N21: 53.25 | O21: 44.5 | P21: 29.1 | R21: 46.3
A22: =A21+1/120 -> 0.1583333333 | B22: 0 | C22: 53.4 | D22: 30.7 | E22: 58.1 | F22: 37.85 | G22: 0 | H22: 47.3 | I22: 40.2 | J22: 40.3 | K22: 45.8 | L22: 29.8 | M22: 35.6 | N22: 54 | O22: 44.8 | P22: 28.9 | R22: 47
A23: =A22+1/120 -> 0.1666666667 | B23: 0 | C23: 57.2 | D23: 31.2 | E23: 58.65 | F23: 37.65 | G23: 0 | H23: 47.3 | I23: 40 | J23: 40 | K23: 46.3 | L23: 29.5 | M23: 36.1 | N23: 56.4 | O23: 45.7 | P23: 28.6 | R23: 47.7
A24: =A23+1/120 -> 0.175 | B24: 0 | C24: 61.3 | D24: 31.6 | E24: 59.2 | F24: 37.25 | G24: 0 | H24: 46.85 | I24: 40.3 | J24: 40.2 | K24: 47.1 | L24: 29.4 | M24: 36.5 | N24: 58.1 | O24: 46.5 | P24: 28.5 | R24: 48.45
A25: =A24+1/120 -> 0.1833333333 | B25: 0 | C25: 64.55 | D25: 31.8 | E25: 59.9 | F25: 37.25 | G25: 0 | H25: 47.55 | I25: 40.2 | J25: 40 | K25: 47.6 | L25: 29.3 | M25: 37.3 | N25: 61.15 | O25: 46.75 | P25: 28.7 | R25: 49
A26: =A25+1/120 -> 0.1916666667 | B26: 0 | C26: 67.6 | D26: 32.1 | E26: 60.9 | F26: 37.7 | G26: 0 | H26: 48.45 | I26: 40.2 | J26: 39.7 | K26: 48.2 | L26: 29.1 | M26: 37.7 | N26: 62.85 | O26: 47.2 | P26: 28.9 | R26: 49.8
A27: =A26+1/120 -> 0.2 | B27: 0 | C27: 70.75 | D27: 31.9 | E27: 62.2 | F27: 39.1 | G27: 0 | H27: 49.7 | I27: 40.2 | J27: 40.1 | K27: 48.55 | L27: 29.1 | M27: 37.9 | N27: 64.6 | O27: 47.65 | P27: 28.9 | R27: 50.15
A28: =A27+1/120 -> 0.2083333333 | B28: 0 | C28: 73.4 | D28: 31.8 | E28: 62 | F28: 39.7 | G28: 0 | H28: 49.1 | I28: 40.3 | J28: 39.9 | K28: 48.5 | L28: 29.1 | M28: 38.4 | N28: 65.1 | O28: 47.7 | P28: 28.9 | R28: 50.6
A29: =A28+1/120 -> 0.2166666667 | B29: 0 | C29: 75.8 | D29: 32 | E29: 62.85 | F29: 39.3 | G29: 0 | H29: 49 | I29: 40.5 | J29: 40 | K29: 48.5 | L29: 29.3 | M29: 38.5 | N29: 65.4 | O29: 48.35 | P29: 28.6 | R29: 50.9
A30: =A29+1/120 -> 0.225 | B30: 0 | C30: 78.15 | D30: 32.2 | E30: 63.55 | F30: 39.1 | G30: 0 | H30: 51.6 | I30: 40.5 | J30: 40.7 | K30: 48.5 | L30: 29.3 | M30: 38.6 | N30: 66.7 | O30: 49 | P30: 28.4 | R30: 51.5
A31: =A30+1/120 -> 0.2333333333 | B31: 0 | C31: 79.05 | D31: 32.5 | E31: 64.6 | F31: 38.8 | G31: 0 | H31: 54.1 | I31: 40.5 | J31: 40.4 | K31: 48 | L31: 29.1 | M31: 38.65 | N31: 67 | O31: 49.4 | P31: 28.9 | R31: 51.8
A32: =A31+1/120 -> 0.2416666667 | B32: 0 | C32: 79.5 | D32: 33 | E32: 65.4 | F32: 38.8 | G32: 0 | H32: 54.1 | I32: 40.5 | J32: 40.4 | K32: 47.7 | L32: 29.1 | M32: 38.25 | N32: 67.9 | O32: 49.4 | P32: 28.6 | R32: 51.85
A33: =A32+1/120 -> 0.25 | B33: 0 | C33: 78.55 | D33: 33 | E33: 65.4 | F33: 38.9 | G33: 0 | H33: 53.6 | I33: 40.5 | J33: 40.4 | K33: 47.2 | L33: 29 | M33: 37.75 | N33: 70.9 | O33: 49.9 | P33: 28.6 | R33: 52.7
A34: =A33+1/120 -> 0.2583333333 | B34: 0 | D34: 33 | E34: 65.15 | F34: 39 | G34: 0 | H34: 49.95 | I34: 40.5 | J34: 40.5 | K34: 46.7 | L34: 28.8 | M34: 37.1 | N34: 71.8 | O34: 51.25 | P34: 28.8 | R34: 52.8
A35: =A34+1/120 -> 0.2666666667 | B35: 0 | D35: 34 | E35: 65.5 | F35: 38.6 | G35: 0 | H35: 47 | I35: 40.5 | J35: 40.7 | K35: 46.65 | L35: 28.7 | M35: 37.25 | N35: 73.2 | O35: 52.7 | P35: 29.1 | R35: 52.9
A36: =A35+1/120 -> 0.275 | B36: 0 | D36: 35 | E36: 64.2 | F36: 39 | G36: 0 | H36: 47.2 | I36: 40.5 | J36: 40.8 | K36: 46.5 | L36: 28.5 | M36: 37.05 | N36: 74.2 | O36: 55.2 | P36: 29.2 | R36: 53.2
A37: =A36+1/120 -> 0.2833333333 | B37: 0 | D37: 35.2 | E37: 64 | F37: 39.7 | G37: 0 | H37: 47.25 | I37: 40.4 | J37: 41.2 | K37: 46.4 | L37: 28.8 | M37: 36.5 | N37: 75 | O37: 57.6 | P37: 29.2 | R37: 53.7
A38: =A37+1/120 -> 0.2916666667 | B38: 0 | D38: 35.4 | E38: 63.45 | F38: 40.2 | G38: 0 | H38: 47.1 | I38: 40.1 | J38: 41.2 | K38: 46.7 | L38: 28.7 | M38: 36.1 | N38: 75.4 | O38: 60.1 | P38: 29.2 | R38: 53.3
A39: =A38+1/120 -> 0.3 | B39: 0 | D39: 35.4 | E39: 63.2 | F39: 40.4 | G39: 0 | H39: 46.9 | I39: 39.9 | J39: 41 | K39: 47 | L39: 28.6 | M39: 36.4 | N39: 75.9 | O39: 61.6 | P39: 29.3 | R39: 53
A40: =A39+1/120 -> 0.3083333333 | B40: 0 | D40: 35.15 | E40: 63.5 | F40: 40.25 | G40: 0 | H40: 46.5 | I40: 40 | J40: 40.9 | K40: 47.5 | L40: 28.8 | M40: 36.25 | N40: 76.2 | O40: 62.6 | P40: 29.2 | R40: 53.7
A41: =A40+1/120 -> 0.3166666667 | B41: 0 | D41: 35.65 | E41: 63.7 | F41: 40.75 | G41: 0 | H41: 46.1 | I41: 40.3 | J41: 40.7 | K41: 47.95 | L41: 28.7 | M41: 36.6 | N41: 76.5 | O41: 62.5 | P41: 28.9 | R41: 54.05
A42: =A41+1/120 -> 0.325 | B42: 0 | D42: 36.05 | E42: 63.3 | F42: 41.2 | G42: 0 | H42: 45.4 | I42: 40.5 | J42: 40.8 | K42: 48.5 | L42: 28.7 | M42: 36.4 | N42: 76.9 | O42: 63.1 | P42: 29 | R42: 54.5
A43: =A42+1/120 -> 0.3333333333 | B43: 0 | D43: 36 | E43: 63.3 | F43: 41.3 | G43: 0 | H43: 44.8 | I43: 40.5 | J43: 41.1 | K43: 48.7 | L43: 29 | M43: 36.2 | N43: 77.3 | O43: 63.85 | P43: 29 | R43: 54.8
A44: =A43+1/120 -> 0.3416666667 | B44: 0 | D44: 35.45 | E44: 63.3 | F44: 39.9 | G44: 0 | H44: 44.7 | I44: 40.5 | J44: 41.3 | K44: 49.1 | L44: 29.6 | M44: 36.25 | N44: 77.4 | O44: 65.15 | P44: 29.2 | R44: 55.1
A45: =A44+1/120 -> 0.35 | B45: 0 | D45: 34.55 | E45: 63.15 | F45: 40.3 | G45: 0 | H45: 45.35 | I45: 40.6 | J45: 41.2 | K45: 49.6 | L45: 30 | M45: 35.8 | N45: 77.6 | O45: 66.15 | P45: 29.7 | R45: 54.75
A46: =A45+1/120 -> 0.3583333333 | B46: 0 | D46: 33.95 | E46: 62.95 | F46: 39.9 | G46: 0 | H46: 46.25 | I46: 40.8 | J46: 41.1 | K46: 49.8 | L46: 30.2 | M46: 35.7 | N46: 77.65 | O46: 68.2 | P46: 29.9 | R46: 54.9
A47: =A46+1/120 -> 0.3666666667 | B47: 0 | D47: 34.15 | E47: 63.05 | F47: 39.8 | G47: 0 | H47: 46.7 | I47: 41 | J47: 40.9 | K47: 49.95 | L47: 30.2 | M47: 35.8 | N47: 77.5 | O47: 67.3 | P47: 29.4 | R47: 54.6
A48: =A47+1/120 -> 0.375 | B48: 0 | D48: 35.5 | E48: 63.3 | F48: 39.7 | G48: 0 | H48: 46.35 | I48: 40.9 | J48: 40.8 | K48: 50.25 | L48: 30.4 | M48: 35.95 | N48: 78.05 | O48: 66.4 | P48: 29.1 | R48: 54.7
A49: =A48+1/120 -> 0.3833333333 | B49: 0 | D49: 36.15 | E49: 63.4 | F49: 39.5 | G49: 0 | H49: 45.85 | I49: 41 | J49: 40.8 | L49: 30.9 | M49: 36.1 | N49: 78.1 | P49: 28.9
A50: =A49+1/120 -> 0.3916666667 | B50: 0 | D50: 36.4 | E50: 63.75 | F50: 39.7 | G50: 0 | H50: 45.3 | I50: 41.1 | J50: 40.3 | L50: 31.2 | M50: 36.4 | N50: 78.3 | P50: 29
A51: =A50+1/120 -> 0.4 | B51: 0 | D51: 36.75 | E51: 63.9 | F51: 39.8 | G51: 0 | H51: 45.1 | I51: 41.4 | J51: 40.2 | L51: 31.6 | M51: 36.8 | P51: 29.4
A52: =A51+1/120 -> 0.4083333333 | B52: 0 | D52: 36.6 | E52: 64.2 | F52: 39 | G52: 0 | H52: 45.15 | I52: 41.5 | J52: 40.2 | L52: 32 | M52: 37.3 | P52: 29.6
A53: =A52+1/120 -> 0.4166666667 | B53: 0 | D53: 36.9 | E53: 64.7 | F53: 38.95 | G53: 0 | H53: 44.8 | I53: 41.5 | J53: 40.3 | L53: 32.7 | M53: 37.1 | P53: 29.7
A54: =A53+1/120 -> 0.425 | B54: 0 | D54: 36.9 | E54: 64.4 | F54: 39.6 | G54: 0 | H54: 44.4 | I54: 41.5 | J54: 40.3 | L54: 33.4 | M54: 36.65 | P54: 30
A55: =A54+1/120 -> 0.4333333333 | B55: 0 | D55: 36.95 | E55: 64.5 | F55: 40 | G55: 0 | H55: 43.9 | I55: 41.5 | J55: 40.5 | L55: 33.7 | P55: 30.3
A56: =A55+1/120 -> 0.4416666667 | B56: 0 | D56: 37.05 | E56: 64.35 | F56: 40 | G56: 0 | H56: 43.5 | I56: 41.6 | J56: 41 | L56: 33.8 | P56: 30.4
A57: =A56+1/120 -> 0.45 | B57: 0 | D57: 37.25 | E57: 63.9 | F57: 38.3 | G57: 0 | H57: 43.5 | I57: 42 | J57: 41.4 | L57: 34 | P57: 30.2
A58: =A57+1/120 -> 0.4583333333 | B58: 0 | D58: 37.55 | E58: 62.75 | F58: 39.1 | G58: 0 | H58: 43.4 | I58: 42.1 | J58: 41.4 | L58: 34.1 | P58: 29.7
A59: =A58+1/120 -> 0.4666666667 | B59: 0 | D59: 37.8 | F59: 39.5 | G59: 0 | H59: 43.9 | I59: 42.1 | J59: 41.4 | L59: 34.2 | P59: 29.2
A60: =A59+1/120 -> 0.475 | B60: 0 | D60: 38.05 | F60: 39.6 | G60: 0 | H60: 44.1 | I60: 42.2 | J60: 41.3 | L60: 34.25 | P60: 29.6
A61: =A60+1/120 -> 0.4833333333 | B61: 0 | D61: 38.05 | F61: 39.4 | G61: 0 | H61: 44 | I61: 42.2 | J61: 41.35 | L61: 34.45 | P61: 29.9
A62: =A61+1/120 -> 0.4916666667 | B62: 0 | D62: 38.15 | F62: 39.5 | G62: 0 | H62: 43 | I62: 42.1 | J62: 41.4 | L62: 34.35 | P62: 30.1
A63: =A62+1/120 -> 0.5 | B63: 0 | D63: 38.05 | F63: 39.6 | G63: 0 | I63: 42 | J63: 41.55 | L63: 34.5 | P63: 30.2
A64: =A63+1/120 -> 0.5083333333 | B64: 0 | D64: 38.3 | F64: 39.4 | G64: 0 | I64: 42 | J64: 41.65 | L64: 34.7 | P64: 30.2
A65: =A64+1/120 -> 0.5166666667 | B65: 0 | D65: 38.6 | F65: 39.4 | G65: 0 | I65: 42.1 | J65: 41.95 | L65: 34.3 | P65: 30.4
A66: =A65+1/120 -> 0.525 | B66: 0 | D66: 38.8 | F66: 38.6 | G66: 0 | I66: 42 | J66: 42 | L66: 34.15 | P66: 30.6
A67: =A66+1/120 -> 0.5333333333 | B67: 0 | D67: 38.6 | F67: 39.5 | G67: 0 | I67: 41.6 | J67: 42.1 | L67: 34.1 | P67: 30.8
A68: =A67+1/120 -> 0.5416666667 | B68: 0 | D68: 37.75 | F68: 39.7 | G68: 0 | I68: 41.1 | J68: 42.3 | L68: 33.65 | P68: 30.9
A69: =A68+1/120 -> 0.55 | B69: 0 | D69: 37.5 | F69: 39.7 | G69: 0 | I69: 40.7 | J69: 42.15 | L69: 33.15 | P69: 30.7
A70: =A69+1/120 -> 0.5583333333 | B70: 0 | D70: 37 | F70: 39.5 | G70: 0 | I70: 40.4 | J70: 42.05 | L70: 32.45 | P70: 30.4
A71: =A70+1/120 -> 0.5666666667 | B71: 0 | D71: 37.5 | F71: 39.5 | G71: 0 | I71: 40 | J71: 42 | L71: 32.25 | P71: 29.8
A72: =A71+1/120 -> 0.575 | B72: 0 | D72: 38.1 | F72: 39 | G72: 0 | I72: 39.9 | J72: 42.05 | L72: 31.6 | P72: 29.7
A73: =A72+1/120 -> 0.5833333333 | B73: 0 | D73: 37.9 | F73: 39.35 | G73: 0 | I73: 40.1 | J73: 42.15 | L73: 31.7 | P73: 30.2
A74: =A73+1/120 -> 0.5916666667 | B74: 0 | D74: 37.9 | F74: 39.75 | G74: 0 | I74: 40.7 | J74: 42.1 | L74: 31.3 | P74: 30.6
A75: =A74+1/120 -> 0.6 | B75: 0 | D75: 38 | F75: 40.25 | G75: 0 | I75: 41.3 | J75: 42.1 | L75: 31.25 | P75: 30.3
A76: =A75+1/120 -> 0.6083333333 | B76: 0 | D76: 37.7 | F76: 40.2 | G76: 0 | I76: 41.8 | J76: 42.25 | L76: 31.35 | P76: 30.1
A77: =A76+1/120 -> 0.6166666667 | B77: 0 | D77: 37.8 | F77: 40.1 | G77: 0 | I77: 41.7 | J77: 42.35 | L77: 31 | P77: 29.7
A78: =A77+1/120 -> 0.625 | B78: 0 | D78: 38 | F78: 39.9 | G78: 0 | I78: 41.2 | J78: 42.25 | L78: 30.8 | P78: 29.6
A79: =A78+1/120 -> 0.6333333333 | B79: 0 | D79: 37.9 | F79: 40 | G79: 0 | I79: 40.8 | J79: 42.35 | L79: 30.7 | P79: 30
A80: =A79+1/120 -> 0.6416666667 | B80: 0 | D80: 37.7 | F80: 39.9 | G80: 0 | I80: 40.5 | J80: 42.55 | L80: 30.6 | P80: 30.6
A81: =A80+1/120 -> 0.65 | B81: 0 | D81: 37.6 | F81: 39.9 | G81: 0 | I81: 40.6 | J81: 42.7 | L81: 30.7 | P81: 31
A82: =A81+1/120 -> 0.6583333333 | B82: 0 | D82: 37.7 | F82: 39.7 | G82: 0 | I82: 40.8 | J82: 42.7 | L82: 30.6 | P82: 31.1
A83: =A82+1/120 -> 0.6666666667 | B83: 0 | D83: 37.8 | F83: 39.8 | G83: 0 | I83: 41 | J83: 42.5 | L83: 30.4 | P83: 31
A84: =A83+1/120 -> 0.675 | B84: 0 | D84: 37.55 | F84: 39.8 | G84: 0 | I84: 41.1 | J84: 42.05 | L84: 30.2 | P84: 31
A85: =A84+1/120 -> 0.6833333333 | B85: 0 | D85: 37.15 | F85: 39.75 | G85: 0 | I85: 41.3 | J85: 42 | L85: 29.8 | P85: 31.5
A86: =A85+1/120 -> 0.6916666667 | B86: 0 | D86: 36.9 | F86: 39.55 | G86: 0 | I86: 40.55 | J86: 42.1 | L86: 29.7 | P86: 32
A87: =A86+1/120 -> 0.7 | B87: 0 | D87: 37 | F87: 39.4 | G87: 0 | I87: 40.75 | J87: 42.15 | L87: 29.8 | P87: 31.1
A88: =A87+1/120 -> 0.7083333333 | B88: 0 | D88: 36.7 | F88: 39 | G88: 0 | I88: 40.9 | J88: 42.05 | L88: 29.8 | P88: 30.4
A89: =A88+1/120 -> 0.7166666667 | B89: 0 | D89: 34.15 | G89: 0 | I89: 41.05 | J89: 41.8 | L89: 29.7 | P89: 30.3
A90: =A89+1/120 -> 0.725 | B90: 0 | D90: 34.1 | G90: 0 | I90: 41.15 | J90: 41.65 | L90: 29.6 | P90: 30.7
A91: =A90+1/120 -> 0.7333333333 | B91: 0 | D91: 34.3 | G91: 0 | I91: 41.15 | J91: 41.65 | L91: 29.5 | P91: 31.1
A92: =A91+1/120 -> 0.7416666667 | B92: 0 | D92: 34.45 | G92: 0 | I92: 41.1 | J92: 41.65 | L92: 29.4 | P92: 31
A93: =A92+1/120 -> 0.75 | B93: 0 | D93: 34.35 | G93: 0 | I93: 41.1 | J93: 41.75 | L93: 29 | P93: 30.7
A94: =A93+1/120 -> 0.7583333333 | B94: 0 | D94: 33.7 | G94: 0 | I94: 41.25 | J94: 41.8 | L94: 28.7 | P94: 30.4
A95: =A94+1/120 -> 0.7666666667 | B95: 0 | D95: 33.8 | G95: 0 | I95: 41.45 | J95: 41.9 | L95: 28.5 | P95: 30.1
A96: =A95+1/120 -> 0.775 | B96: 0 | D96: 33.7 | G96: 0 | I96: 41.7 | J96: 42.05 | L96: 28.5 | P96: 29.9
A97: =A96+1/120 -> 0.7833333333 | B97: 0 | D97: 33.2 | G97: 0 | I97: 41.85 | J97: 42.15 | L97: 29 | P97: 31
A98: =A97+1/120 -> 0.7916666667 | B98: 0 | D98: 32.8 | G98: 0 | I98: 41.75 | J98: 42.25 | L98: 29.3 | P98: 31.4
A99: =A98+1/120 -> 0.8 | B99: 0 | D99: 32.5 | G99: 0 | I99: 41.65 | J99: 42.45 | L99: 29.6 | P99: 30.5
A100: =A99+1/120 -> 0.8083333333 | B100: 0 | D100: 32.3 | G100: 0 | I100: 41.65 | J100: 42.9 | L100: 29.5 | P100: 30.4
A101: =A100+1/120 -> 0.8166666667 | B101: 0 | D101: 31.9 | G101: 0 | I101: 41.75 | J101: 43.1 | L101: 29.3 | P101: 30.5
A102: =A101+1/120 -> 0.825 | B102: 0 | D102: 31.7 | G102: 0 | I102: 41.75 | J102: 43.1 | L102: 29.2 | P102: 30.8
A103: =A102+1/120 -> 0.8333333333 | B103: 0 | D103: 32 | G103: 0 | I103: 42 | J103: 42.95 | L103: 29.4 | P103: 31.1
A104: =A103+1/120 -> 0.8416666667 | B104: 0 | D104: 32.6 | G104: 0 | I104: 42.3 | J104: 43 | L104: 29.6 | P104: 31.3
A105: =A104+1/120 -> 0.85 | B105: 0 | D105: 32.7 | G105: 0 | I105: 42.25 | J105: 43 | L105: 29.6 | P105: 31.2
A106: =A105+1/120 -> 0.8583333333 | B106: 0 | D106: 32.4 | G106: 0 | I106: 42.2 | J106: 42.75 | L106: 30 | P106: 30.9
A107: =A106+1/120 -> 0.8666666667 | B107: 0 | D107: 31.9 | G107: 0 | I107: 42.1 | J107: 42.65 | L107: 30.6 | P107: 30.7
A108: =A107+1/120 -> 0.875 | B108: 0 | D108: 31.6 | G108: 0 | I108: 42.25 | J108: 42.65 | L108: 31 | P108: 30.7
A109: =A108+1/120 -> 0.8833333333 | B109: 0 | D109: 31.25 | G109: 0 | I109: 42.3 | J109: 42.7 | L109: 31.3 | P109: 30.5
A110: =A109+1/120 -> 0.8916666667 | B110: 0 | D110: 31.1 | G110: 0 | I110: 42.3 | J110: 43 | L110: 31.5 | P110: 30.2
A111: =A110+1/120 -> 0.9 | B111: 0 | D111: 31.05 | G111: 0 | I111: 42.3 | J111: 43.15 | L111: 31.5 | P111: 29.7
A112: =A111+1/120 -> 0.9083333333 | B112: 0 | D112: 31 | G112: 0 | I112: 42.3 | J112: 43.2 | L112: 31.5 | P112: 29.7
A113: =A112+1/120 -> 0.9166666667 | B113: 0 | D113: 31 | G113: 0 | I113: 42.4 | J113: 43.5 | L113: 31.5 | P113: 29.8
A114: =A113+1/120 -> 0.925 | B114: 0 | D114: 31.45 | G114: 0 | I114: 42.45 | J114: 43.5 | L114: 31.9 | P114: 29.8
A115: =A114+1/120 -> 0.9333333333 | B115: 0 | D115: 31.45 | G115: 0 | I115: 42.5 | J115: 43.4 | L115: 32.1 | P115: 29.7
A116: =A115+1/120 -> 0.9416666667 | B116: 0 | D116: 31.8 | G116: 0 | I116: 42.5 | J116: 43.1 | L116: 32.2 | P116: 30
A117: =A116+1/120 -> 0.95 | B117: 0 | D117: 31.5 | G117: 0 | I117: 42.5 | J117: 43.2 | L117: 32.5 | P117: 30.2
A118: =A117+1/120 -> 0.9583333333 | B118: 0 | D118: 31.5 | G118: 0 | I118: 42.7 | J118: 43 | L118: 32.9 | P118: 30.4
A119: =A118+1/120 -> 0.9666666667 | B119: 0 | D119: 31.6 | G119: 0 | I119: 42.9 | J119: 42.9 | L119: 33.1 | P119: 30.4
A120: =A119+1/120 -> 0.975 | B120: 0 | D120: 31.8 | G120: 0 | I120: 42.75 | J120: 43.1 | L120: 33.2 | P120: 30.1
A121: =A120+1/120 -> 0.9833333333 | B121: 0 | D121: 31.9 | G121: 0 | I121: 42.6 | J121: 43.3 | L121: 31.9 | P121: 30
A122: =A121+1/120 -> 0.9916666667 | B122: 0 | D122: 31.7 | G122: 0 | I122: 42.55 | J122: 43.6 | L122: 32.5 | P122: 29.7
A123: =A122+1/120 -> 1 | B123: 0 | D123: 31.6 | G123: 0 | I123: 42.5 | J123: 43.7 | L123: 32.5 | P123: 29.9
A124: =A123+1/120 -> 1.008333333 | B124: 0 | D124: 31.6 | G124: 0 | I124: 42.55 | J124: 43.6 | L124: 32.2 | P124: 30.2
A125: =A124+1/120 -> 1.016666667 | B125: 0 | D125: 31.25 | G125: 0 | I125: 42.6 | J125: 43.6 | L125: 32.2 | P125: 30
A126: =A125+1/120 -> 1.025 | B126: 0 | D126: 31.2 | G126: 0 | I126: 42.5 | J126: 43.5 | L126: 32.3 | P126: 30.4
A127: =A126+1/120 -> 1.033333333 | B127: 0 | D127: 31 | G127: 0 | I127: 42.45 | J127: 43.4 | L127: 32.3 | P127: 30.7
A128: =A127+1/120 -> 1.041666667 | B128: 0 | D128: 30.9 | G128: 0 | I128: 42.35 | J128: 43.3 | L128: 31.9 | P128: 30.7
A129: =A128+1/120 -> 1.05 | B129: 0 | D129: 31 | G129: 0 | I129: 42.25 | J129: 43.4 | L129: 31.6 | P129: 30.5
A130: =A129+1/120 -> 1.058333333 | B130: 0 | D130: 31.1 | G130: 0 | I130: 42.25 | J130: 43.7 | L130: 31.3 | P130: 30.6
A131: =A130+1/120 -> 1.066666667 | B131: 0 | D131: 31.15 | G131: 0 | I131: 42.35 | J131: 43.8 | L131: 31.4 | P131: 30.5
A132: =A131+1/120 -> 1.075 | B132: 0 | D132: 31.25 | G132: 0 | I132: 42.75 | J132: 44 | L132: 31.3 | P132: 30.3
A133: =A132+1/120 -> 1.083333333 | B133: 0 | D133: 31.1 | G133: 0 | I133: 42.9 | J133: 44 | L133: 31.2 | P133: 30
A134: =A133+1/120 -> 1.091666667 | B134: 0 | G134: 0 | I134: 42.7 | J134: 43.5 | L134: 31.2 | P134: 30.1
A135: =A134+1/120 -> 1.1 | B135: 0 | G135: 0 | I135: 42.6 | J135: 43.3 | L135: 31.2 | P135: 29.7
A136: =A135+1/120 -> 1.108333333 | B136: 0 | G136: 0 | I136: 42.6 | J136: 43.5 | L136: 30.8 | P136: 29.7
A137: =A136+1/120 -> 1.116666667 | B137: 0 | G137: 0 | I137: 42.7 | J137: 43.8 | L137: 30.3 | P137: 29.7
A138: =A137+1/120 -> 1.125 | B138: 0 | G138: 0 | I138: 42.9 | J138: 42.7 | L138: 30.4 | P138: 29.8
A139: =A138+1/120 -> 1.133333333 | B139: 0 | G139: 0 | I139: 42.9 | J139: 41.9 | L139: 30.1 | P139: 29.8
A140: =A139+1/120 -> 1.141666667 | B140: 0 | G140: 0 | I140: 42.8 | J140: 41.9 | L140: 29.7 | P140: 30
A141: =A140+1/120 -> 1.15 | B141: 0 | G141: 0 | I141: 42.7 | J141: 42.7 | L141: 29.6 | P141: 29.8
A142: =A141+1/120 -> 1.158333333 | B142: 0 | G142: 0 | I142: 42.75 | J142: 42.9 | L142: 29.6 | P142: 29.8
A143: =A142+1/120 -> 1.166666667 | B143: 0 | G143: 0 | I143: 42.9 | J143: 42.6 | L143: 29.5 | P143: 30
A144: =A143+1/120 -> 1.175 | B144: 0 | G144: 0 | I144: 43.05 | J144: 42 | L144: 29.5 | P144: 30
A145: =A144+1/120 -> 1.183333333 | B145: 0 | G145: 0 | I145: 43.25 | J145: 41.4 | L145: 29.6 | P145: 29.7
A146: =A145+1/120 -> 1.191666667 | B146: 0 | G146: 0 | I146: 43.35 | J146: 41.3 | L146: 29.6 | P146: 29.6
A147: =A146+1/120 -> 1.2 | B147: 0 | G147: 0 | I147: 43.3 | J147: 41.7 | L147: 29.5 | P147: 29.9
A148: =A147+1/120 -> 1.208333333 | B148: 0 | G148: 0 | I148: 43.2 | J148: 42.1 | L148: 29.4 | P148: 29.5
A149: =A148+1/120 -> 1.216666667 | B149: 0 | G149: 0 | I149: 43.05 | J149: 42.2 | L149: 29.3 | P149: 29.5
A150: =A149+1/120 -> 1.225 | B150: 0 | G150: 0 | I150: 43.05 | J150: 42.1 | L150: 29.1 | P150: 29.3
A151: =A150+1/120 -> 1.233333333 | B151: 0 | G151: 0 | I151: 42.85 | J151: 42 | L151: 29.1 | P151: 29.3
A152: =A151+1/120 -> 1.241666667 | B152: 0 | G152: 0 | I152: 42.6 | J152: 42.2 | L152: 29 | P152: 29.8
A153: =A152+1/120 -> 1.25 | B153: 0 | G153: 0 | I153: 42.75 | J153: 42 | L153: 29.1 | P153: 29.8
A154: =A153+1/120 -> 1.258333333 | B154: 0 | G154: 0 | I154: 42.9 | J154: 42.1 | L154: 29 | P154: 30
A155: =A154+1/120 -> 1.266666667 | B155: 0 | G155: 0 | I155: 43 | J155: 42 | L155: 28.8 | P155: 30.5
A156: =A155+1/120 -> 1.275 | B156: 0 | G156: 0 | I156: 42.95 | J156: 42 | L156: 28.9 | P156: 30.6
A157: =A156+1/120 -> 1.283333333 | B157: 0 | G157: 0 | I157: 42.8 | J157: 42.1 | L157: 28.9 | P157: 30.3
A158: =A157+1/120 -> 1.291666667 | B158: 0 | G158: 0 | I158: 42.6 | J158: 41.9 | L158: 29.3 | P158: 30.1
A159: =A158+1/120 -> 1.3 | B159: 0 | G159: 0 | I159: 42.6 | J159: 41.5 | L159: 29.1 | P159: 30.3
A160: =A159+1/120 -> 1.308333333 | B160: 0 | G160: 0 | I160: 42.65 | J160: 41.1 | L160: 28.7 | P160: 30.1
A161: =A160+1/120 -> 1.316666667 | B161: 0 | G161: 0 | I161: 42.7 | J161: 41.4 | L161: 28.6 | P161: 30.3
A162: =A161+1/120 -> 1.325 | B162: 0 | G162: 0 | I162: 42.7 | J162: 41.6 | L162: 28.6 | P162: 30.4
A163: =A162+1/120 -> 1.333333333 | B163: 0 | G163: 0 | I163: 42.6 | J163: 41.6 | L163: 28.9 | P163: 30.5
A164: =A163+1/120 -> 1.341666667 | B164: 0 | G164: 0 | I164: 42.65 | J164: 41.6 | L164: 29 | P164: 30.5
A165: =A164+1/120 -> 1.35 | B165: 0 | G165: 0 | I165: 42.7 | J165: 41.7 | L165: 29.6 | P165: 30.4
A166: =A165+1/120 -> 1.358333333 | B166: 0 | G166: 0 | I166: 42.9 | J166: 41.4 | L166: 29.5 | P166: 30.6
A167: =A166+1/120 -> 1.366666667 | B167: 0 | G167: 0 | I167: 42.95 | J167: 41 | L167: 29.5 | P167: 30.2
A168: =A167+1/120 -> 1.375 | B168: 0 | G168: 0 | I168: 43 | J168: 41.2 | L168: 29.8 | P168: 30
A169: =A168+1/120 -> 1.383333333 | B169: 0 | G169: 0 | I169: 43 | J169: 41.6 | L169: 30.3 | P169: 30.8
A170: =A169+1/120 -> 1.391666667 | B170: 0 | G170: 0 | I170: 43.1 | J170: 41.4 | L170: 30.5 | P170: 31.6
A171: =A170+1/120 -> 1.4 | B171: 0 | G171: 0 | I171: 43.15 | J171: 41.3 | L171: 30.5 | P171: 31.7
A172: =A171+1/120 -> 1.408333333 | B172: 0 | G172: 0 | I172: 43.15 | J172: 41.2 | L172: 30.7 | P172: 31.4
A173: =A172+1/120 -> 1.416666667 | B173: 0 | G173: 0 | I173: 43.1 | J173: 41.4 | L173: 31.4 | P173: 30.8
A174: =A173+1/120 -> 1.425 | B174: 0 | G174: 0 | I174: 43 | J174: 41.6 | L174: 31.7 | P174: 30.6
A175: =A174+1/120 -> 1.433333333 | B175: 0 | G175: 0 | I175: 42.95 | J175: 41.8 | L175: 31.4 | P175: 31.4
A176: =A175+1/120 -> 1.441666667 | B176: 0 | G176: 0 | I176: 42.8 | J176: 41.9 | L176: 31.2 | P176: 31.2
A177: =A176+1/120 -> 1.45 | B177: 0 | G177: 0 | I177: 42.7 | J177: 41.6 | L177: 31.3 | P177: 31
A178: =A177+1/120 -> 1.458333333 | B178: 0 | G178: 0 | I178: 42.65 | J178: 41.5 | L178: 31.5 | P178: 30.9
A179: =A178+1/120 -> 1.466666667 | B179: 0 | G179: 0 | I179: 42.75 | J179: 41.5 | L179: 31.9 | P179: 30.8
A180: =A179+1/120 -> 1.475 | B180: 0 | G180: 0 | I180: 42.7 | J180: 41.2 | L180: 32.5 | P180: 30.6
A181: =A180+1/120 -> 1.483333333 | B181: 0 | G181: 0 | I181: 42.75 | J181: 41.3 | L181: 32.6 | P181: 30.1
A182: =A181+1/120 -> 1.491666667 | B182: 0 | G182: 0 | I182: 43 | J182: 40.9 | L182: 33 | P182: 30.3
A183: =A182+1/120 -> 1.5 | B183: 0 | G183: 0 | I183: 43.15 | J183: 40.8 | L183: 33.4 | P183: 30.8
A184: =A183+1/120 -> 1.508333333 | B184: 0 | G184: 0 | I184: 43.05 | J184: 40.9 | L184: 33.5 | P184: 31
A185: =A184+1/120 -> 1.516666667 | B185: 0 | G185: 0 | I185: 43 | J185: 41.5 | L185: 33.5 | P185: 30.8
A186: =A185+1/120 -> 1.525 | B186: 0 | G186: 0 | I186: 42.8 | J186: 41.6 | L186: 33.8 | P186: 30.4
A187: =A186+1/120 -> 1.533333333 | B187: 0 | G187: 0 | I187: 42.8 | J187: 41.7 | L187: 34.1 | P187: 30.25
A188: =A187+1/120 -> 1.541666667 | B188: 0 | G188: 0 | I188: 42.9 | J188: 41.4 | L188: 34.3 | P188: 30.45
A189: =A188+1/120 -> 1.55 | B189: 0 | G189: 0 | I189: 42.8 | J189: 41.1 | L189: 33.8 | P189: 30.5
A190: =A189+1/120 -> 1.558333333 | B190: 0 | G190: 0 | I190: 42.7 | J190: 40.9 | L190: 33.65 | P190: 30.6
A191: =A190+1/120 -> 1.566666667 | B191: 0 | G191: 0 | I191: 42.7 | J191: 41 | L191: 33.25 | P191: 30.65
A192: =A191+1/120 -> 1.575 | B192: 0 | G192: 0 | I192: 43.1 | J192: 41 | L192: 32.5 | P192: 30.3
A193: =A192+1/120 -> 1.583333333 | B193: 0 | G193: 0 | I193: 43.4 | J193: 40.9 | L193: 32.4 | P193: 30.1
A194: =A193+1/120 -> 1.591666667 | B194: 0 | G194: 0 | I194: 43.3 | J194: 40.6 | L194: 32.2 | P194: 29.7
A195: =A194+1/120 -> 1.6 | B195: 0 | G195: 0 | I195: 42.9 | J195: 40.6 | L195: 32.2 | P195: 29.65
A196: =A195+1/120 -> 1.608333333 | B196: 0 | G196: 0 | I196: 42.7 | J196: 40.6 | L196: 31.75 | P196: 30.25
A197: =A196+1/120 -> 1.616666667 | B197: 0 | G197: 0 | I197: 42.8 | J197: 40.9 | P197: 30.8
A198: =A197+1/120 -> 1.625 | B198: 0 | G198: 0 | I198: 42.8 | J198: 41.3 | P198: 30.85
A199: =A198+1/120 -> 1.633333333 | B199: 0 | G199: 0 | I199: 42.8 | J199: 41.6 | P199: 30.7
A200: =A199+1/120 -> 1.641666667 | B200: 0 | G200: 0 | I200: 42.9 | J200: 41.6 | P200: 30.4
... 162 more rows

Sheet anubis_DF{BSC267}_Day50 - anubi
A1: anubis/DF{BSC267} - Day 50
A2: Median Time (s) | B2: Median Diameter (um) - Individual Animal NOTE: 0 = Heart was Constitutively Contracted in that Animal | O2: Median Diameter (um) - All Heartbeats
A3: 0 | B3: 67.8 | C3: 75.9 | D3: 0 | E3: 72.9 | F3: 55.95 | G3: 69.8 | H3: 75.7 | I3: 88.3 | J3: 72.7 | K3: 58.75 | L3: 55.3 | M3: 75.95 | O3: 69.5
A4: =A3+1/120 -> 0.008333333333 | B4: 65.3 | C4: 73.5 | D4: 0 | E4: 71.4 | F4: 53.65 | G4: 67.1 | H4: 73.7 | I4: 85.5 | J4: 70.9 | K4: 57.9 | L4: 54.1 | M4: 74.9 | O4: 67.8
A5: =A4+1/120 -> 0.01666666667 | B5: 62.5 | C5: 70.95 | D5: 0 | E5: 68.8 | F5: 50.65 | G5: 62.9 | H5: 71.4 | I5: 81.4 | J5: 67.9 | K5: 56.35 | L5: 51.7 | M5: 72.9 | O5: 64.8
A6: =A5+1/120 -> 0.025 | B6: 58.1 | C6: 67.35 | D6: 0 | E6: 65.5 | F6: 47.45 | G6: 59 | H6: 67.4 | I6: 76.7 | J6: 63.1 | K6: 53.7 | L6: 49.5 | M6: 69.55 | O6: 61.3
A7: =A6+1/120 -> 0.03333333333 | B7: 54.1 | C7: 63.05 | D7: 0 | E7: 61.9 | F7: 44.65 | G7: 55.4 | H7: 63.7 | I7: 71.9 | J7: 57.8 | K7: 50.75 | L7: 46.6 | M7: 66.5 | O7: 57.8
A8: =A7+1/120 -> 0.04166666667 | B8: 50 | C8: 58.85 | D8: 0 | E8: 58.1 | F8: 42.45 | G8: 52.6 | H8: 58.8 | I8: 66.8 | J8: 52.5 | K8: 48.05 | L8: 44.6 | M8: 62.5 | O8: 54.1
A9: =A8+1/120 -> 0.05 | B9: 46.8 | C9: 55 | D9: 0 | E9: 55.8 | F9: 41 | G9: 49.8 | H9: 54.2 | I9: 62.3 | J9: 47.5 | K9: 47 | L9: 42.5 | M9: 58.95 | O9: 51.2
A10: =A9+1/120 -> 0.05833333333 | B10: 44.3 | C10: 52.1 | D10: 0 | E10: 53.2 | F10: 39.65 | G10: 48.5 | H10: 50.15 | I10: 58.5 | J10: 44.4 | K10: 45.35 | L10: 40.9 | M10: 55.15 | O10: 48.6
A11: =A10+1/120 -> 0.06666666667 | B11: 42.6 | C11: 49.15 | D11: 0 | E11: 51 | F11: 38.35 | G11: 46.6 | H11: 46.85 | I11: 55.3 | J11: 41.8 | K11: 44.6 | L11: 40.1 | M11: 52 | O11: 46.5
A12: =A11+1/120 -> 0.075 | B12: 41.1 | C12: 47.2 | D12: 0 | E12: 49.1 | F12: 37.6 | G12: 45 | H12: 44.95 | I12: 52.8 | J12: 40.1 | K12: 44.25 | L12: 39.6 | M12: 49.5 | O12: 44.9
A13: =A12+1/120 -> 0.08333333333 | B13: 39.8 | C13: 45.75 | D13: 0 | E13: 47.95 | F13: 37.3 | G13: 43.8 | H13: 42.7 | I13: 50.7 | J13: 39.4 | K13: 43.4 | L13: 39.4 | M13: 47.4 | O13: 43.4
A14: =A13+1/120 -> 0.09166666667 | B14: 39 | C14: 43.75 | D14: 0 | E14: 47.1 | F14: 36.85 | G14: 42.5 | H14: 41.4 | I14: 49 | J14: 39.1 | K14: 42.5 | L14: 38.5 | M14: 45.8 | O14: 42.2
A15: =A14+1/120 -> 0.1 | B15: 38.2 | C15: 42.2 | D15: 0 | E15: 46.65 | F15: 36.8 | G15: 42.3 | H15: 40.3 | I15: 47.6 | J15: 38.6 | K15: 41.9 | L15: 38.2 | M15: 44.55 | O15: 41.5
A16: =A15+1/120 -> 0.1083333333 | B16: 37.6 | C16: 41 | D16: 0 | E16: 46.3 | F16: 36.55 | G16: 42 | H16: 39.45 | I16: 46.5 | J16: 38.1 | K16: 41.5 | L16: 37.7 | M16: 43.05 | O16: 40.8
A17: =A16+1/120 -> 0.1166666667 | B17: 37.2 | C17: 39.9 | D17: 0 | E17: 45.8 | F17: 36.25 | G17: 41.9 | H17: 39.4 | I17: 45.5 | J17: 37.95 | K17: 40.9 | L17: 37.55 | M17: 41.8 | O17: 40.5
A18: =A17+1/120 -> 0.125 | B18: 37 | C18: 39.15 | D18: 0 | E18: 45.9 | F18: 36.15 | G18: 42.1 | H18: 39.15 | I18: 44.7 | J18: 37.9 | K18: 41 | L18: 37.45 | M18: 41.1 | O18: 40.2
A19: =A18+1/120 -> 0.1333333333 | B19: 37 | C19: 38.7 | D19: 0 | E19: 45.5 | F19: 36 | G19: 42.3 | H19: 39.15 | I19: 44.2 | J19: 38 | K19: 41.1 | L19: 37.3 | M19: 40.3 | O19: 40
A20: =A19+1/120 -> 0.1416666667 | B20: 37.1 | C20: 38.85 | D20: 0 | E20: 45.75 | F20: 35.8 | G20: 42.6 | H20: 38.55 | I20: 44 | J20: 38.2 | K20: 41.2 | L20: 37.3 | M20: 39.8 | O20: 39.9
A21: =A20+1/120 -> 0.15 | B21: 37.5 | C21: 39 | D21: 0 | E21: 45.6 | F21: 35.8 | G21: 43 | H21: 38.55 | I21: 44.35 | J21: 38.2 | K21: 41.5 | L21: 37.35 | M21: 39.5 | O21: 40
A22: =A21+1/120 -> 0.1583333333 | B22: 37.7 | C22: 39.2 | D22: 0 | E22: 45.4 | F22: 36 | G22: 43.8 | H22: 38.15 | I22: 45.95 | J22: 38.1 | K22: 41.7 | L22: 37.2 | M22: 39.45 | O22: 40.3
A23: =A22+1/120 -> 0.1666666667 | B23: 37.9 | C23: 39.5 | D23: 0 | E23: 45.55 | F23: 36.2 | G23: 44.4 | H23: 37.9 | I23: 49.5 | J23: 38.1 | K23: 42.1 | L23: 37.3 | M23: 39.2 | O23: 40.3
A24: =A23+1/120 -> 0.175 | B24: 38 | C24: 39.45 | D24: 0 | E24: 45.6 | F24: 36.2 | G24: 44.9 | H24: 37.6 | I24: 53.75 | J24: 38 | K24: 42.3 | L24: 37.4 | M24: 38.9 | O24: 40.5
A25: =A24+1/120 -> 0.1833333333 | B25: 38.1 | C25: 39.6 | D25: 0 | E25: 45.6 | F25: 36.1 | G25: 45.05 | H25: 37.5 | I25: 58.15 | J25: 38.1 | K25: 42.5 | L25: 37.1 | M25: 38.7 | O25: 40.5
A26: =A25+1/120 -> 0.1916666667 | B26: 38 | C26: 39.6 | D26: 0 | E26: 46.2 | F26: 36.2 | G26: 45.5 | H26: 37.2 | I26: 62.6 | J26: 38 | K26: 42.9 | L26: 37.4 | M26: 38.3 | O26: 40.5
A27: =A26+1/120 -> 0.2 | B27: 37.6 | C27: 40 | D27: 0 | E27: 46.55 | F27: 36.1 | G27: 45.5 | H27: 36.8 | I27: 64.6 | J27: 38.4 | K27: 43.05 | L27: 37.4 | M27: 38.1 | O27: 40.6
A28: =A27+1/120 -> 0.2083333333 | B28: 37.75 | C28: 40.2 | D28: 0 | E28: 46.85 | F28: 36.1 | G28: 45.65 | H28: 36.5 | I28: 67.4 | J28: 38.7 | K28: 43.2 | L28: 37.9 | M28: 37.8 | O28: 40.7
A29: =A28+1/120 -> 0.2166666667 | B29: 38.1 | C29: 40.6 | D29: 0 | E29: 47.2 | F29: 35.9 | G29: 46.25 | H29: 36.5 | I29: 67.4 | J29: 39.5 | K29: 43.5 | L29: 38 | M29: 37.95 | O29: 41.1
A30: =A29+1/120 -> 0.225 | B30: 38.3 | C30: 41.6 | D30: 0 | E30: 47.75 | F30: 36 | G30: 46.2 | H30: 36.5 | I30: 65.1 | J30: 40.5 | K30: 43.9 | L30: 38 | M30: 38.4 | O30: 41.5
A31: =A30+1/120 -> 0.2333333333 | B31: 38.3 | C31: 41.9 | D31: 0 | E31: 48.5 | F31: 36.1 | G31: 46.5 | H31: 36.5 | I31: 63.5 | J31: 40.9 | K31: 44.15 | L31: 37.95 | M31: 38.8 | O31: 42.1
A32: =A31+1/120 -> 0.2416666667 | B32: 38.3 | C32: 42.3 | D32: 0 | E32: 49.65 | F32: 36.55 | G32: 46.8 | H32: 36.5 | I32: 63.7 | J32: 41.65 | K32: 44.6 | L32: 37.95 | M32: 39.5 | O32: 42.8
A33: =A32+1/120 -> 0.25 | B33: 38.3 | C33: 42.45 | D33: 0 | E33: 51.25 | F33: 36.9 | G33: 47 | H33: 36.5 | I33: 67.45 | J33: 42.1 | K33: 44.9 | L33: 37.9 | M33: 40.45 | O33: 43.5
A34: =A33+1/120 -> 0.2583333333 | B34: 38.65 | C34: 43.9 | D34: 0 | E34: 50.7 | F34: 37.1 | G34: 47.4 | H34: 37 | I34: 70 | J34: 43 | K34: 44.9 | L34: 38.1 | M34: 42.3 | O34: 43.7
A35: =A34+1/120 -> 0.2666666667 | B35: 38.85 | C35: 45.15 | D35: 0 | E35: 51.45 | F35: 37.1 | G35: 48.5 | H35: 37.7 | I35: 72.1 | J35: 43.4 | K35: 44.6 | L35: 37.95 | M35: 44.8 | O35: 44.1
A36: =A35+1/120 -> 0.275 | B36: 39 | C36: 45.4 | D36: 0 | E36: 50.6 | F36: 37.5 | G36: 49.4 | H36: 38.9 | I36: 73.25 | J36: 43.5 | K36: 44.5 | L36: 37.8 | M36: 47.7 | O36: 44.5
A37: =A36+1/120 -> 0.2833333333 | B37: 38.9 | C37: 45.5 | D37: 0 | E37: 51.7 | F37: 37.9 | G37: 49.95 | H37: 40.5 | I37: 75.2 | J37: 43.65 | K37: 44.4 | L37: 38 | M37: 50.1 | O37: 44.6
A38: =A37+1/120 -> 0.2916666667 | B38: 38.8 | C38: 45.95 | D38: 0 | E38: 51.9 | F38: 37.95 | G38: 50.1 | H38: 41.85 | I38: 77.5 | J38: 43.4 | K38: 44.2 | L38: 38.3 | M38: 51.8 | O38: 45.2
A39: =A38+1/120 -> 0.3 | B39: 38.5 | C39: 45.5 | D39: 0 | E39: 53.5 | F39: 38 | G39: 51.2 | H39: 43.7 | I39: 78.6 | J39: 42.9 | K39: 44 | L39: 38.3 | M39: 54 | O39: 45.5
A40: =A39+1/120 -> 0.3083333333 | B40: 38.5 | C40: 45.75 | D40: 0 | E40: 53.9 | F40: 37.9 | G40: 50.7 | H40: 46.6 | I40: 80.15 | J40: 42.6 | K40: 43.9 | L40: 38.3 | M40: 56.7 | O40: 45.85
A41: =A40+1/120 -> 0.3166666667 | B41: 38.9 | C41: 45.9 | D41: 0 | E41: 56.3 | F41: 37.8 | G41: 51.35 | H41: 48.7 | I41: 81.3 | J41: 41.95 | K41: 43.7 | L41: 38.65 | M41: 58.35 | O41: 46
A42: =A41+1/120 -> 0.325 | B42: 39.2 | C42: 44.8 | D42: 0 | E42: 58.5 | F42: 37.5 | G42: 48.85 | H42: 52.25 | I42: 82.2 | J42: 41.4 | K42: 43.75 | L42: 39.35 | M42: 59.5 | O42: 46.45
A43: =A42+1/120 -> 0.3333333333 | B43: 40.1 | C43: 44.55 | D43: 0 | E43: 60.4 | F43: 37.6 | G43: 47.6 | H43: 53.9 | J43: 40.95 | K43: 43.5 | L43: 39.8 | M43: 61.6 | O43: 46.9
A44: =A43+1/120 -> 0.3416666667 | B44: 40.3 | C44: 44.95 | D44: 0 | E44: 61.2 | F44: 37.7 | G44: 47.35 | H44: 57.1 | J44: 40.8 | K44: 43.3 | L44: 40 | M44: 62.4 | O44: 47.6
A45: =A44+1/120 -> 0.35 | B45: 41.25 | C45: 46.05 | D45: 0 | E45: 62.8 | F45: 37.9 | G45: 47.4 | H45: 57.3 | J45: 40.4 | K45: 43.1 | L45: 40.15 | M45: 63.35 | O45: 48.2
A46: =A45+1/120 -> 0.3583333333 | B46: 41.5 | C46: 46.75 | D46: 0 | E46: 64.6 | F46: 38 | G46: 47.45 | H46: 59.85 | J46: 40.3 | K46: 43.1 | L46: 40.5 | M46: 64.1 | O46: 49.7
A47: =A46+1/120 -> 0.3666666667 | B47: 43.1 | C47: 48.3 | D47: 0 | E47: 64.8 | F47: 37.8 | G47: 48.5 | H47: 61 | J47: 40.25 | K47: 43.2 | L47: 40.6 | M47: 64.85 | O47: 50.1
A48: =A47+1/120 -> 0.375 | B48: 46.25 | C48: 48.8 | D48: 0 | E48: 65.55 | F48: 37.85 | G48: 48.5 | H48: 61.4 | J48: 40.1 | K48: 43.2 | L48: 41.3 | M48: 65.9 | O48: 50.8
A49: =A48+1/120 -> 0.3833333333 | B49: 49.1 | C49: 52.85 | D49: 0 | E49: 66.35 | F49: 37.65 | G49: 50.4 | H49: 58.2 | J49: 40.1 | L49: 43.1 | M49: 65.9 | O49: 52.4
A50: =A49+1/120 -> 0.3916666667 | B50: 50.9 | C50: 57.1 | D50: 0 | E50: 66.75 | F50: 37.7 | G50: 51.1 | H50: 59.75 | J50: 40.2 | L50: 43.6 | M50: 67.3 | O50: 53.95
A51: =A50+1/120 -> 0.4 | B51: 52.7 | C51: 59.85 | D51: 0 | E51: 67 | F51: 37.65 | G51: 51.25 | H51: 60.5 | J51: 40 | L51: 44.8 | M51: 67.95 | O51: 54.4
A52: =A51+1/120 -> 0.4083333333 | B52: 54.9 | C52: 62.2 | D52: 0 | E52: 68.2 | F52: 38 | G52: 50.8 | H52: 52.3 | J52: 39.95 | L52: 45.85 | M52: 68.15 | O52: 55.1
A53: =A52+1/120 -> 0.4166666667 | B53: 56 | C53: 61.95 | D53: 0 | E53: 69.5 | F53: 38.2 | G53: 51.45 | H53: 52.7 | J53: 40.2 | L53: 46.3 | M53: 68.7 | O53: 55.9
A54: =A53+1/120 -> 0.425 | B54: 56.9 | C54: 63.1 | D54: 0 | E54: 69.5 | F54: 38.7 | G54: 51.75 | H54: 56.1 | J54: 40 | L54: 46.6 | M54: 69.3 | O54: 56.8
A55: =A54+1/120 -> 0.4333333333 | B55: 58.3 | C55: 63.95 | D55: 0 | F55: 39.1 | G55: 53.65 | H55: 59.6 | J55: 39.7 | L55: 47.4 | M55: 69.9 | O55: 57.65
A56: =A55+1/120 -> 0.4416666667 | B56: 59.5 | C56: 66 | D56: 0 | F56: 39 | G56: 52.5 | H56: 61.6 | J56: 40 | L56: 47.4 | M56: 70.3 | O56: 58.8
A57: =A56+1/120 -> 0.45 | B57: 59.8 | C57: 67 | D57: 0 | F57: 39.2 | H57: 62.1 | J57: 39.9 | L57: 47.7 | M57: 70.9 | O57: 59.45
A58: =A57+1/120 -> 0.4583333333 | B58: 60.3 | C58: 67.2 | D58: 0 | F58: 39.15 | H58: 63 | J58: 39.4 | L58: 48.7 | M58: 71.4 | O58: 59.9
A59: =A58+1/120 -> 0.4666666667 | B59: 60.6 | D59: 0 | F59: 39.15 | H59: 65.65 | J59: 39.9 | L59: 48.8 | M59: 71.85
A60: =A59+1/120 -> 0.475 | B60: 60.85 | D60: 0 | F60: 39.4 | H60: 66.3 | J60: 39.5 | L60: 48.9 | M60: 72.1
A61: =A60+1/120 -> 0.4833333333 | B61: 61.5 | D61: 0 | F61: 40.2 | L61: 49 | M61: 72.3
A62: =A61+1/120 -> 0.4916666667 | B62: 61.6 | D62: 0 | F62: 40.05 | L62: 49.35 | M62: 72.7
A63: =A62+1/120 -> 0.5 | B63: 61.95 | D63: 0 | F63: 39.8 | L63: 49.1 | M63: 73
A64: =A63+1/120 -> 0.5083333333 | B64: 62 | D64: 0 | F64: 40 | L64: 50.3 | M64: 73.3
A65: =A64+1/120 -> 0.5166666667 | B65: 62 | D65: 0 | F65: 40.4 | L65: 51.6 | M65: 73.5
A66: =A65+1/120 -> 0.525 | B66: 62.2 | D66: 0 | F66: 41.1 | L66: 52.25 | M66: 73.6
A67: =A66+1/120 -> 0.5333333333 | B67: 62.6 | D67: 0 | F67: 41.15 | L67: 52.5 | M67: 73.6
A68: =A67+1/120 -> 0.5416666667 | B68: 62.5 | D68: 0 | F68: 41.4 | L68: 53.4 | M68: 73.7
A69: =A68+1/120 -> 0.55 | B69: 62.5 | D69: 0 | F69: 42.1 | M69: 73.8
A70: =A69+1/120 -> 0.5583333333 | D70: 0 | F70: 42.1 | M70: 73.9
A71: =A70+1/120 -> 0.5666666667 | D71: 0 | F71: 42.1 | M71: 74
A72: =A71+1/120 -> 0.575 | D72: 0 | M72: 74.2
A73: =A72+1/120 -> 0.5833333333 | D73: 0 | M73: 74.2
A74: =A73+1/120 -> 0.5916666667 | D74: 0 | M74: 74.25
A75: =A74+1/120 -> 0.6 | D75: 0 | M75: 74.4
A76: =A75+1/120 -> 0.6083333333 | D76: 0 | M76: 74.2
A77: =A76+1/120 -> 0.6166666667 | D77: 0
A78: =A77+1/120 -> 0.625 | D78: 0
A79: =A78+1/120 -> 0.6333333333 | D79: 0
A80: =A79+1/120 -> 0.6416666667 | D80: 0
A81: =A80+1/120 -> 0.65 | D81: 0
A82: =A81+1/120 -> 0.6583333333 | D82: 0
A83: =A82+1/120 -> 0.6666666667 | D83: 0
A84: =A83+1/120 -> 0.675 | D84: 0
A85: =A84+1/120 -> 0.6833333333 | D85: 0
A86: =A85+1/120 -> 0.6916666667 | D86: 0
A87: =A86+1/120 -> 0.7 | D87: 0
A88: =A87+1/120 -> 0.7083333333 | D88: 0
A89: =A88+1/120 -> 0.7166666667 | D89: 0
A90: =A89+1/120 -> 0.725 | D90: 0
A91: =A90+1/120 -> 0.7333333333 | D91: 0
A92: =A91+1/120 -> 0.7416666667 | D92: 0
A93: =A92+1/120 -> 0.75 | D93: 0
A94: =A93+1/120 -> 0.7583333333 | D94: 0
A95: =A94+1/120 -> 0.7666666667 | D95: 0
A96: =A95+1/120 -> 0.775 | D96: 0
A97: =A96+1/120 -> 0.7833333333 | D97: 0
A98: =A97+1/120 -> 0.7916666667 | D98: 0
A99: =A98+1/120 -> 0.8 | D99: 0
A100: =A99+1/120 -> 0.8083333333 | D100: 0
A101: =A100+1/120 -> 0.8166666667 | D101: 0
A102: =A101+1/120 -> 0.825 | D102: 0
A103: =A102+1/120 -> 0.8333333333 | D103: 0
A104: =A103+1/120 -> 0.8416666667 | D104: 0
A105: =A104+1/120 -> 0.85 | D105: 0
A106: =A105+1/120 -> 0.8583333333 | D106: 0
A107: =A106+1/120 -> 0.8666666667 | D107: 0
A108: =A107+1/120 -> 0.875 | D108: 0
A109: =A108+1/120 -> 0.8833333333 | D109: 0
A110: =A109+1/120 -> 0.8916666667 | D110: 0
A111: =A110+1/120 -> 0.9 | D111: 0
A112: =A111+1/120 -> 0.9083333333 | D112: 0
A113: =A112+1/120 -> 0.9166666667 | D113: 0
A114: =A113+1/120 -> 0.925 | D114: 0
A115: =A114+1/120 -> 0.9333333333 | D115: 0
A116: =A115+1/120 -> 0.9416666667 | D116: 0
A117: =A116+1/120 -> 0.95 | D117: 0
A118: =A117+1/120 -> 0.9583333333 | D118: 0
A119: =A118+1/120 -> 0.9666666667 | D119: 0
A120: =A119+1/120 -> 0.975 | D120: 0
A121: =A120+1/120 -> 0.9833333333 | D121: 0
A122: =A121+1/120 -> 0.9916666667 | D122: 0
A123: =A122+1/120 -> 1 | D123: 0
A124: =A123+1/120 -> 1.008333333 | D124: 0
A125: =A124+1/120 -> 1.016666667 | D125: 0
A126: =A125+1/120 -> 1.025 | D126: 0
A127: =A126+1/120 -> 1.033333333 | D127: 0
A128: =A127+1/120 -> 1.041666667 | D128: 0
A129: =A128+1/120 -> 1.05 | D129: 0
A130: =A129+1/120 -> 1.058333333 | D130: 0
A131: =A130+1/120 -> 1.066666667 | D131: 0
A132: =A131+1/120 -> 1.075 | D132: 0
A133: =A132+1/120 -> 1.083333333 | D133: 0
A134: =A133+1/120 -> 1.091666667 | D134: 0
A135: =A134+1/120 -> 1.1 | D135: 0
A136: =A135+1/120 -> 1.108333333 | D136: 0
A137: =A136+1/120 -> 1.116666667 | D137: 0
A138: =A137+1/120 -> 1.125 | D138: 0
A139: =A138+1/120 -> 1.133333333 | D139: 0
A140: =A139+1/120 -> 1.141666667 | D140: 0
A141: =A140+1/120 -> 1.15 | D141: 0
A142: =A141+1/120 -> 1.158333333 | D142: 0
A143: =A142+1/120 -> 1.166666667 | D143: 0
A144: =A143+1/120 -> 1.175 | D144: 0
A145: =A144+1/120 -> 1.183333333 | D145: 0
A146: =A145+1/120 -> 1.191666667 | D146: 0
A147: =A146+1/120 -> 1.2 | D147: 0
A148: =A147+1/120 -> 1.208333333 | D148: 0
A149: =A148+1/120 -> 1.216666667 | D149: 0
A150: =A149+1/120 -> 1.225 | D150: 0
A151: =A150+1/120 -> 1.233333333 | D151: 0
A152: =A151+1/120 -> 1.241666667 | D152: 0
A153: =A152+1/120 -> 1.25 | D153: 0
A154: =A153+1/120 -> 1.258333333 | D154: 0
A155: =A154+1/120 -> 1.266666667 | D155: 0
A156: =A155+1/120 -> 1.275 | D156: 0
A157: =A156+1/120 -> 1.283333333 | D157: 0
A158: =A157+1/120 -> 1.291666667 | D158: 0
A159: =A158+1/120 -> 1.3 | D159: 0
A160: =A159+1/120 -> 1.308333333 | D160: 0
A161: =A160+1/120 -> 1.316666667 | D161: 0
A162: =A161+1/120 -> 1.325 | D162: 0
A163: =A162+1/120 -> 1.333333333 | D163: 0
A164: =A163+1/120 -> 1.341666667 | D164: 0
A165: =A164+1/120 -> 1.35 | D165: 0
A166: =A165+1/120 -> 1.358333333 | D166: 0
A167: =A166+1/120 -> 1.366666667 | D167: 0
A168: =A167+1/120 -> 1.375 | D168: 0
A169: =A168+1/120 -> 1.383333333 | D169: 0
A170: =A169+1/120 -> 1.391666667 | D170: 0
A171: =A170+1/120 -> 1.4 | D171: 0
A172: =A171+1/120 -> 1.408333333 | D172: 0
A173: =A172+1/120 -> 1.416666667 | D173: 0
A174: =A173+1/120 -> 1.425 | D174: 0
A175: =A174+1/120 -> 1.433333333 | D175: 0
A176: =A175+1/120 -> 1.441666667 | D176: 0
A177: =A176+1/120 -> 1.45 | D177: 0
A178: =A177+1/120 -> 1.458333333 | D178: 0
A179: =A178+1/120 -> 1.466666667 | D179: 0
A180: =A179+1/120 -> 1.475 | D180: 0
A181: =A180+1/120 -> 1.483333333 | D181: 0
A182: =A181+1/120 -> 1.491666667 | D182: 0
A183: =A182+1/120 -> 1.5 | D183: 0
A184: =A183+1/120 -> 1.508333333 | D184: 0
A185: =A184+1/120 -> 1.516666667 | D185: 0
A186: =A185+1/120 -> 1.525 | D186: 0
A187: =A186+1/120 -> 1.533333333 | D187: 0
A188: =A187+1/120 -> 1.541666667 | D188: 0
A189: =A188+1/120 -> 1.55 | D189: 0
A190: =A189+1/120 -> 1.558333333 | D190: 0
A191: =A190+1/120 -> 1.566666667 | D191: 0
A192: =A191+1/120 -> 1.575 | D192: 0
A193: =A192+1/120 -> 1.583333333 | D193: 0
A194: =A193+1/120 -> 1.591666667 | D194: 0
A195: =A194+1/120 -> 1.6 | D195: 0
A196: =A195+1/120 -> 1.608333333 | D196: 0
A197: =A196+1/120 -> 1.616666667 | D197: 0
A198: =A197+1/120 -> 1.625 | D198: 0
A199: =A198+1/120 -> 1.633333333 | D199: 0
A200: =A199+1/120 -> 1.641666667 | D200: 0
... 162 more rows

Sheet anubis+R94C02->anubis(cDNA)_Day
A1: anubis + R94C02->anubis(cDNA) - Day 50
A2: Median Time (s) | B2: Median Diameter (um) - Individual Animal | AD2: Median Diameter (um) - All Heartbeats
A3: 0 | B3: 80.4 | C3: 79.6 | D3: 79.45 | E3: 80.9 | F3: 80 | G3: 86.2 | H3: 54.7 | I3: 66.95 | J3: 68 | K3: 63.2 | L3: 91.55 | M3: 83.6 | N3: 87.1 | O3: 80.5 | P3: 87.95 | Q3: 101.6 | R3: 96.95 | S3: 71.35 | T3: 86.8 | U3: 81.85 | V3: 57.8 | W3: 101.9 | X3: 87.3 | Y3: 92.45 | Z3: 76.8 | AA3: 79.4 | AB3: 93.2 | AD3: 81.9
A4: =A3+1/120 -> 0.008333333333 | B4: 77.1 | C4: 77.3 | D4: 77.9 | E4: 77.5 | F4: 76.8 | G4: 81.3 | H4: 52.3 | I4: 63.8 | J4: 64.2 | K4: 60.1 | L4: 87.65 | M4: 81.1 | N4: 84.5 | O4: 76.1 | P4: 82.8 | Q4: 96.7 | R4: 91.9 | S4: 68.8 | T4: 83.3 | U4: 78 | V4: 55.5 | W4: 97 | X4: 84.2 | Y4: 89.7 | Z4: 73.3 | AA4: 75.5 | AB4: 89.8 | AD4: 78.6
A5: =A4+1/120 -> 0.01666666667 | B5: 72.05 | C5: 73.25 | D5: 75.2 | E5: 72.55 | F5: 73 | G5: 75.7 | H5: 48.4 | I5: 60 | J5: 59.7 | K5: 55.7 | L5: 81.05 | M5: 77.1 | N5: 80 | O5: 70.4 | P5: 76.15 | Q5: 89.9 | R5: 85.7 | S5: 63.45 | T5: 79.2 | U5: 72.6 | V5: 52.3 | W5: 89.8 | X5: 80.2 | Y5: 83.95 | Z5: 69.1 | AA5: 71.3 | AB5: 85.3 | AD5: 73.6
A6: =A5+1/120 -> 0.025 | B6: 66.7 | C6: 67.45 | D6: 71 | E6: 67.5 | F6: 68.1 | G6: 69.3 | H6: 43.9 | I6: 55.95 | J6: 54.5 | K6: 50.8 | L6: 73.8 | M6: 72.55 | N6: 74.2 | O6: 64.5 | P6: 69.05 | Q6: 82.1 | R6: 78.85 | S6: 56.9 | T6: 74.9 | U6: 67.1 | V6: 48.7 | W6: 82.2 | X6: 75.05 | Y6: 77.7 | Z6: 64.85 | AA6: 66.8 | AB6: 80.2 | AD6: 68.1
A7: =A6+1/120 -> 0.03333333333 | B7: 61.4 | C7: 61.6 | D7: 66.9 | E7: 63.3 | F7: 63.2 | G7: 63.4 | H7: 39.6 | I7: 52.4 | J7: 49.3 | K7: 46.5 | L7: 66.65 | M7: 67.35 | N7: 67.7 | O7: 58.8 | P7: 62.3 | Q7: 74.5 | R7: 72.2 | S7: 51.15 | T7: 70.2 | U7: 61.95 | V7: 45 | W7: 74.7 | X7: 69.8 | Y7: 71.7 | Z7: 60.85 | AA7: 62.4 | AB7: 74.6 | AD7: 62.9
A8: =A7+1/120 -> 0.04166666667 | B8: 56.1 | C8: 55.8 | D8: 62.5 | E8: 59.9 | F8: 58 | G8: 58.4 | H8: 36.1 | I8: 49.5 | J8: 45.2 | K8: 43.5 | L8: 60.95 | M8: 62.9 | N8: 61.9 | O8: 54.4 | P8: 56.9 | Q8: 68.1 | R8: 66.1 | S8: 46.5 | T8: 65.7 | U8: 57.9 | V8: 41.15 | W8: 68.4 | X8: 64.6 | Y8: 66.85 | Z8: 57.5 | AA8: 59.3 | AB8: 69 | AD8: 58.3
A9: =A8+1/120 -> 0.05 | B9: 51.4 | C9: 50.2 | D9: 57.9 | E9: 56.7 | F9: 53.5 | G9: 54.6 | H9: 33.5 | I9: 47.5 | J9: 42.4 | K9: 41.5 | L9: 56.1 | M9: 59.4 | N9: 57.6 | O9: 51 | P9: 53.1 | Q9: 63.1 | R9: 61.65 | S9: 43.8 | T9: 61.7 | U9: 55 | V9: 37.9 | W9: 63.5 | X9: 59.9 | Y9: 63.1 | Z9: 54.5 | AA9: 57.2 | AB9: 64 | AD9: 54.6
A10: =A9+1/120 -> 0.05833333333 | B10: 47.75 | C10: 45.9 | D10: 53.15 | E10: 53.6 | F10: 49.85 | G10: 51.9 | H10: 31.6 | I10: 46.2 | J10: 40.9 | K10: 40.3 | L10: 52.2 | M10: 56.7 | N10: 54.3 | O10: 48.8 | P10: 50.4 | Q10: 59.8 | R10: 58.9 | S10: 42.35 | T10: 58.5 | U10: 52.95 | V10: 35.15 | W10: 60 | X10: 56.2 | Y10: 60.1 | Z10: 52.6 | AA10: 55.6 | AB10: 59.5 | AD10: 51.9
A11: =A10+1/120 -> 0.06666666667 | B11: 45.35 | C11: 42.4 | D11: 49.3 | E11: 51.3 | F11: 47.1 | G11: 50.3 | H11: 30.3 | I11: 45.4 | J11: 40 | K11: 39.5 | L11: 49.8 | M11: 55.45 | N11: 52.6 | O11: 47.6 | P11: 48.9 | Q11: 57.5 | R11: 57.3 | S11: 41.55 | T11: 56.4 | U11: 52 | V11: 33.2 | W11: 58 | X11: 53.6 | Y11: 57.3 | Z11: 50.95 | AA11: 54.8 | AB11: 56.1 | AD11: 50.1
A12: =A11+1/120 -> 0.075 | B12: 44.2 | C12: 40.1 | D12: 47.2 | E12: 50.4 | F12: 45.2 | G12: 49.3 | H12: 29.6 | I12: 44.8 | J12: 39.5 | K12: 39.1 | L12: 47 | M12: 54.6 | N12: 51.7 | O12: 47.2 | P12: 48.2 | Q12: 55.8 | R12: 56.4 | S12: 40.7 | T12: 55.3 | U12: 51.7 | V12: 32.05 | W12: 57.1 | X12: 52 | Y12: 55.3 | Z12: 49.35 | AA12: 54.3 | AB12: 53.6 | AD12: 48.9
A13: =A12+1/120 -> 0.08333333333 | B13: 43.45 | C13: 38.5 | D13: 46.5 | E13: 51.1 | F13: 44 | G13: 48.85 | H13: 29.3 | I13: 44.5 | J13: 39.1 | K13: 39 | L13: 47.3 | M13: 54.05 | N13: 51.3 | O13: 47.2 | P13: 47.9 | Q13: 54.8 | R13: 56 | S13: 41.05 | T13: 54.5 | U13: 51.8 | V13: 31.2 | W13: 57.2 | X13: 50.9 | Y13: 54.25 | Z13: 48.2 | AA13: 54.2 | AB13: 51.8 | AD13: 48.6
A14: =A13+1/120 -> 0.09166666667 | B14: 43.9 | C14: 37.7 | D14: 47.6 | E14: 53.05 | F14: 43.4 | G14: 49.1 | H14: 29.4 | I14: 44.9 | J14: 38.9 | K14: 39.3 | L14: 50.5 | M14: 54.1 | N14: 51.6 | O14: 47.7 | P14: 48.55 | Q14: 55.6 | R14: 56 | S14: 42.55 | T14: 53.9 | U14: 52.4 | V14: 30.7 | W14: 58.7 | X14: 50.5 | Y14: 54.15 | Z14: 48.1 | AA14: 54.2 | AB14: 50.8 | AD14: 48.8
A15: =A14+1/120 -> 0.1 | B15: 45.15 | C15: 37.5 | D15: 50.7 | E15: 55.6 | F15: 43.2 | G15: 50.9 | H15: 29.9 | I15: 45.9 | J15: 38.9 | K15: 40.1 | L15: 54.6 | M15: 55.25 | N15: 52.3 | O15: 49 | P15: 49.9 | Q15: 57.5 | R15: 57 | S15: 44.35 | T15: 53.55 | U15: 53.65 | V15: 30.7 | W15: 63.4 | X15: 50.5 | Y15: 55.2 | Z15: 48.55 | AA15: 54.5 | AB15: 51 | AD15: 49.8
A16: =A15+1/120 -> 0.1083333333 | B16: 47.6 | C16: 37.8 | D16: 55.2 | E16: 58.3 | F16: 43.85 | G16: 55.4 | H16: 30.9 | I16: 47.4 | J16: 39.4 | K16: 41.8 | L16: 57.5 | M16: 56.85 | N16: 54.1 | O16: 50.8 | P16: 53.35 | Q16: 61.05 | R16: 58.4 | S16: 47.1 | T16: 53.4 | U16: 55.65 | V16: 31.15 | W16: 67.95 | X16: 51 | Y16: 57.5 | Z16: 49.3 | AA16: 55.2 | AB16: 52 | AD16: 51.6
A17: =A16+1/120 -> 0.1166666667 | B17: 50.6 | C17: 38.95 | D17: 60.4 | E17: 60.8 | F17: 45.5 | G17: 61.25 | H17: 32.7 | I17: 49.7 | J17: 40.6 | K17: 44.3 | L17: 61.8 | M17: 59.15 | N17: 57.2 | O17: 53.8 | P17: 57.85 | Q17: 65.8 | R17: 60.1 | S17: 50.65 | T17: 53.4 | U17: 58.3 | V17: 31.9 | W17: 74.2 | X17: 52.1 | Y17: 61.1 | Z17: 51.3 | AA17: 56.3 | AB17: 54.4 | AD17: 53.8
A18: =A17+1/120 -> 0.125 | B18: 54.3 | C18: 40.9 | D18: 64.95 | E18: 63.2 | F18: 47.8 | G18: 68.25 | H18: 35.3 | I18: 52.6 | J18: 42.6 | K18: 47.6 | L18: 65.6 | M18: 62.5 | N18: 62.2 | O18: 57.8 | P18: 62.9 | Q18: 71.5 | R18: 64.4 | S18: 54.25 | T18: 54.15 | U18: 61.6 | V18: 33.4 | W18: 81.4 | X18: 54.6 | Y18: 66.1 | Z18: 54.4 | AA18: 58.1 | AB18: 59.2 | AD18: 57
A19: =A18+1/120 -> 0.1333333333 | B19: 58.1 | C19: 44.5 | D19: 68.35 | E19: 65.2 | F19: 51.1 | G19: 74.9 | H19: 38.3 | I19: 55.6 | J19: 45.9 | K19: 51 | L19: 71.4 | M19: 66.15 | N19: 68.2 | O19: 62.3 | P19: 68.2 | Q19: 77.45 | R19: 70.1 | S19: 57.75 | T19: 55.8 | U19: 65.1 | V19: 35.7 | W19: 88.8 | X19: 58.6 | Y19: 71.6 | Z19: 57.95 | AA19: 60.8 | AB19: 65.6 | AD19: 61
A20: =A19+1/120 -> 0.1416666667 | B20: 61.7 | C20: 48.75 | D20: 70.5 | E20: 66.8 | F20: 54.9 | G20: 77.7 | H20: 41.6 | I20: 57.95 | J20: 50 | K20: 53.8 | L20: 76.3 | M20: 70.5 | N20: 73.7 | O20: 66.6 | P20: 73.8 | Q20: 83.3 | R20: 76.5 | S20: 61 | T20: 59.4 | U20: 68.6 | V20: 39.45 | W20: 93.6 | X20: 63.2 | Y20: 76.8 | Z20: 61.9 | AA20: 64.2 | AB20: 72.8 | AD20: 65.2
A21: =A20+1/120 -> 0.15 | B21: 64.5 | C21: 54 | D21: 72.1 | E21: 68.25 | F21: 58.4 | G21: 76.8 | H21: 44.4 | I21: 57.6 | J21: 54.1 | K21: 55.95 | L21: 80.7 | M21: 73.5 | N21: 78.1 | O21: 70.3 | P21: 80.1 | Q21: 88.1 | R21: 82.85 | S21: 63.65 | T21: 64.8 | U21: 71.9 | V21: 43.1 | W21: 96.1 | X21: 67.9 | Y21: 80.7 | Z21: 65.9 | AA21: 67.7 | AB21: 78.9 | AD21: 68.7
A22: =A21+1/120 -> 0.1583333333 | B22: 66.9 | C22: 59.1 | D22: 72.9 | E22: 69.4 | F22: 62.25 | G22: 76.95 | H22: 46.8 | I22: 56.9 | J22: 57.7 | K22: 57.5 | L22: 85 | M22: 76.3 | N22: 81.5 | O22: 73.65 | P22: 85.5 | Q22: 93 | R22: 88.7 | S22: 65.8 | T22: 71.9 | U22: 74.4 | V22: 47.4 | W22: 95.9 | X22: 73 | Y22: 83.6 | Z22: 69.4 | AA22: 71.1 | AB22: 83.45 | AD22: 71.8
A23: =A22+1/120 -> 0.1666666667 | B23: 68.9 | C23: 64.4 | D23: 73.85 | E23: 70.5 | F23: 65.9 | G23: 77.15 | H23: 48.65 | I23: 56.5 | J23: 60.4 | K23: 58.55 | L23: 87.15 | M23: 77.5 | N23: 83.6 | O23: 76.45 | P23: 82.85 | Q23: 94.3 | R23: 91.4 | S23: 66.9 | T23: 78.1 | U23: 76.75 | V23: 50.2 | W23: 95.55 | X23: 77.1 | Y23: 86 | Z23: 72.3 | AA23: 73.9 | AB23: 86.35 | AD23: 73.9
A24: =A23+1/120 -> 0.175 | B24: 70.6 | C24: 68.3 | D24: 74.4 | E24: 71.9 | F24: 68.7 | G24: 77.35 | H24: 49.9 | I24: 56.7 | J24: 62.1 | K24: 59.7 | L24: 89.2 | M24: 77.6 | N24: 84.9 | O24: 77.9 | P24: 72.25 | Q24: 94.55 | R24: 92.9 | S24: 67.5 | T24: 82.6 | U24: 78.4 | V24: 52.1 | X24: 80.5 | Y24: 87.4 | Z24: 73.9 | AA24: 75.8 | AB24: 87.7 | AD24: 75.5
A25: =A24+1/120 -> 0.1833333333 | B25: 72.2 | C25: 70.5 | D25: 75.3 | E25: 73.9 | F25: 70.7 | H25: 50.45 | I25: 57.25 | J25: 62.3 | K25: 60.7 | L25: 91.25 | M25: 78 | N25: 85.1 | O25: 78.35 | P25: 71.6 | Q25: 93.55 | R25: 93.9 | S25: 67.7 | T25: 84.4 | U25: 79.7 | V25: 52 | X25: 82.3 | Y25: 88.35 | Z25: 74.7 | AA25: 75.8 | AB25: 87.95 | AD25: 76.1
A26: =A25+1/120 -> 0.1916666667 | B26: 74.45 | C26: 71.7 | D26: 76.1 | E26: 76.45 | F26: 72.6 | H26: 50.3 | I26: 57.6 | J26: 62.5 | K26: 61.8 | L26: 93.3 | M26: 78.4 | N26: 85.4 | O26: 78.6 | Q26: 91.3 | R26: 94.2 | S26: 67.8 | T26: 82.65 | U26: 80.1 | V26: 52 | X26: 82.9 | Y26: 89.35 | Z26: 75.3 | AA26: 75 | AB26: 87.9 | AD26: 76.5
A27: =A26+1/120 -> 0.2 | B27: 75.85 | C27: 71.5 | D27: 76.65 | E27: 78.4 | F27: 73.7 | H27: 49.4 | J27: 62.6 | K27: 62.4 | L27: 95.9 | M27: 78.5 | N27: 85.1 | O27: 78.4 | S27: 67.95 | T27: 81.3 | U27: 79.85 | V27: 51.6 | X27: 83.4 | Y27: 90.5 | Z27: 75.4 | AA27: 74.35 | AB27: 88 | AD27: 76.9
A28: =A27+1/120 -> 0.2083333333 | B28: 77 | C28: 71.3 | D28: 76.6 | E28: 79.4 | F28: 73.8 | H28: 49 | K28: 62.3 | L28: 98.4 | M28: 78.8 | N28: 85.1 | S28: 68.3 | U28: 79.8 | V28: 51 | X28: 83.6 | Y28: 92.2 | AD28: 77.2
A29: =A28+1/120 -> 0.2166666667 | B29: 77.8 | D29: 76.2 | E29: 80.2 | F29: 74.2 | H29: 48.55 | K29: 61.75 | M29: 79.1 | X29: 83.3 | Y29: 93.8
A30: =A29+1/120 -> 0.225 | B30: 77 | D30: 75.4 | E30: 80.8 | F30: 74.2 | K30: 61.3 | Y30: 95.75
A31: =A30+1/120 -> 0.2333333333 | B31: 75.5 | D31: 75.3 | E31: 80.9 | F31: 74.2
A32: =A31+1/120 -> 0.2416666667 | E32: 81.2 | F32: 74.1
A33: =A32+1/120 -> 0.25 | E33: 81.25
A34: =A33+1/120 -> 0.2583333333
A35: =A34+1/120 -> 0.2666666667
A36: =A35+1/120 -> 0.275
A37: =A36+1/120 -> 0.2833333333
A38: =A37+1/120 -> 0.2916666667
A39: =A38+1/120 -> 0.3
A40: =A39+1/120 -> 0.3083333333
A41: =A40+1/120 -> 0.3166666667
A42: =A41+1/120 -> 0.325
A43: =A42+1/120 -> 0.3333333333
A44: =A43+1/120 -> 0.3416666667
A45: =A44+1/120 -> 0.35
A46: =A45+1/120 -> 0.3583333333
A47: =A46+1/120 -> 0.3666666667
A48: =A47+1/120 -> 0.375
A49: =A48+1/120 -> 0.3833333333
A50: =A49+1/120 -> 0.3916666667
A51: =A50+1/120 -> 0.4
A52: =A51+1/120 -> 0.4083333333
A53: =A52+1/120 -> 0.4166666667
A54: =A53+1/120 -> 0.425
A55: =A54+1/120 -> 0.4333333333
A56: =A55+1/120 -> 0.4416666667
A57: =A56+1/120 -> 0.45
A58: =A57+1/120 -> 0.4583333333
A59: =A58+1/120 -> 0.4666666667
A60: =A59+1/120 -> 0.475
A61: =A60+1/120 -> 0.4833333333
A62: =A61+1/120 -> 0.4916666667
A63: =A62+1/120 -> 0.5
A64: =A63+1/120 -> 0.5083333333
A65: =A64+1/120 -> 0.5166666667
A66: =A65+1/120 -> 0.525
A67: =A66+1/120 -> 0.5333333333
A68: =A67+1/120 -> 0.5416666667
A69: =A68+1/120 -> 0.55
A70: =A69+1/120 -> 0.5583333333
A71: =A70+1/120 -> 0.5666666667
A72: =A71+1/120 -> 0.575
A73: =A72+1/120 -> 0.5833333333
A74: =A73+1/120 -> 0.5916666667
A75: =A74+1/120 -> 0.6
A76: =A75+1/120 -> 0.6083333333
A77: =A76+1/120 -> 0.6166666667
A78: =A77+1/120 -> 0.625
A79: =A78+1/120 -> 0.6333333333
A80: =A79+1/120 -> 0.6416666667
A81: =A80+1/120 -> 0.65
A82: =A81+1/120 -> 0.6583333333
A83: =A82+1/120 -> 0.6666666667
A84: =A83+1/120 -> 0.675
A85: =A84+1/120 -> 0.6833333333
A86: =A85+1/120 -> 0.6916666667
A87: =A86+1/120 -> 0.7
A88: =A87+1/120 -> 0.7083333333
A89: =A88+1/120 -> 0.7166666667
A90: =A89+1/120 -> 0.725
A91: =A90+1/120 -> 0.7333333333
A92: =A91+1/120 -> 0.7416666667
A93: =A92+1/120 -> 0.75
A94: =A93+1/120 -> 0.7583333333
A95: =A94+1/120 -> 0.7666666667
A96: =A95+1/120 -> 0.775
A97: =A96+1/120 -> 0.7833333333
A98: =A97+1/120 -> 0.7916666667
A99: =A98+1/120 -> 0.8
A100: =A99+1/120 -> 0.8083333333
A101: =A100+1/120 -> 0.8166666667
A102: =A101+1/120 -> 0.825
A103: =A102+1/120 -> 0.8333333333
A104: =A103+1/120 -> 0.8416666667
A105: =A104+1/120 -> 0.85
A106: =A105+1/120 -> 0.8583333333
A107: =A106+1/120 -> 0.8666666667
A108: =A107+1/120 -> 0.875
A109: =A108+1/120 -> 0.8833333333
A110: =A109+1/120 -> 0.8916666667
A111: =A110+1/120 -> 0.9
A112: =A111+1/120 -> 0.9083333333
A113: =A112+1/120 -> 0.9166666667
A114: =A113+1/120 -> 0.925
A115: =A114+1/120 -> 0.9333333333
A116: =A115+1/120 -> 0.9416666667
A117: =A116+1/120 -> 0.95
A118: =A117+1/120 -> 0.9583333333
A119: =A118+1/120 -> 0.9666666667
A120: =A119+1/120 -> 0.975
A121: =A120+1/120 -> 0.9833333333
A122: =A121+1/120 -> 0.9916666667
A123: =A122+1/120 -> 1
A124: =A123+1/120 -> 1.008333333
A125: =A124+1/120 -> 1.016666667
A126: =A125+1/120 -> 1.025
A127: =A126+1/120 -> 1.033333333
A128: =A127+1/120 -> 1.041666667
A129: =A128+1/120 -> 1.05
A130: =A129+1/120 -> 1.058333333
A131: =A130+1/120 -> 1.066666667
A132: =A131+1/120 -> 1.075
A133: =A132+1/120 -> 1.083333333
A134: =A133+1/120 -> 1.091666667
A135: =A134+1/120 -> 1.1
A136: =A135+1/120 -> 1.108333333
A137: =A136+1/120 -> 1.116666667
A138: =A137+1/120 -> 1.125
A139: =A138+1/120 -> 1.133333333
A140: =A139+1/120 -> 1.141666667
A141: =A140+1/120 -> 1.15
A142: =A141+1/120 -> 1.158333333
A143: =A142+1/120 -> 1.166666667
A144: =A143+1/120 -> 1.175
A145: =A144+1/120 -> 1.183333333
A146: =A145+1/120 -> 1.191666667
A147: =A146+1/120 -> 1.2
A148: =A147+1/120 -> 1.208333333
A149: =A148+1/120 -> 1.216666667
A150: =A149+1/120 -> 1.225
A151: =A150+1/120 -> 1.233333333
A152: =A151+1/120 -> 1.241666667
A153: =A152+1/120 -> 1.25
A154: =A153+1/120 -> 1.258333333
A155: =A154+1/120 -> 1.266666667
A156: =A155+1/120 -> 1.275
A157: =A156+1/120 -> 1.283333333
A158: =A157+1/120 -> 1.291666667
A159: =A158+1/120 -> 1.3
A160: =A159+1/120 -> 1.308333333
A161: =A160+1/120 -> 1.316666667
A162: =A161+1/120 -> 1.325
A163: =A162+1/120 -> 1.333333333
A164: =A163+1/120 -> 1.341666667
A165: =A164+1/120 -> 1.35
A166: =A165+1/120 -> 1.358333333
A167: =A166+1/120 -> 1.366666667
A168: =A167+1/120 -> 1.375
A169: =A168+1/120 -> 1.383333333
A170: =A169+1/120 -> 1.391666667
A171: =A170+1/120 -> 1.4
A172: =A171+1/120 -> 1.408333333
A173: =A172+1/120 -> 1.416666667
A174: =A173+1/120 -> 1.425
A175: =A174+1/120 -> 1.433333333
A176: =A175+1/120 -> 1.441666667
A177: =A176+1/120 -> 1.45
A178: =A177+1/120 -> 1.458333333
A179: =A178+1/120 -> 1.466666667
A180: =A179+1/120 -> 1.475
A181: =A180+1/120 -> 1.483333333
A182: =A181+1/120 -> 1.491666667
A183: =A182+1/120 -> 1.5
A184: =A183+1/120 -> 1.508333333
A185: =A184+1/120 -> 1.516666667
A186: =A185+1/120 -> 1.525
A187: =A186+1/120 -> 1.533333333
A188: =A187+1/120 -> 1.541666667
A189: =A188+1/120 -> 1.55
A190: =A189+1/120 -> 1.558333333
A191: =A190+1/120 -> 1.566666667
A192: =A191+1/120 -> 1.575
A193: =A192+1/120 -> 1.583333333
A194: =A193+1/120 -> 1.591666667
A195: =A194+1/120 -> 1.6
A196: =A195+1/120 -> 1.608333333
A197: =A196+1/120 -> 1.616666667
A198: =A197+1/120 -> 1.625
A199: =A198+1/120 -> 1.633333333
A200: =A199+1/120 -> 1.641666667
... 162 more rows
